Workbook

Sheet Menu
C3: CÁLCULO DE JUROS PARA DESCONTO DE CHEQUES OU DUPLICATAS | N3: Data do Calendário | T3: =LARGE(Feriados!A:A,6) -> 2035-05-24
M4: De: | N4: =Datas!H4 -> 2022-01-01 | T4: =IF(AU!$AB$2=0,"ATENÇÃO! Planilha ''violada'' ou você precisa ''validar'' Entre em contato pelo site informando seu CNPJ ou CPF que você informou quando fez a compra da Planilha.","") -> 
M5: Até: | N5: =Datas!H5 -> 2032-12-30
M6: Validade: | N6: =(N5-N4)/365 -> 11.00273973
L9: =IF(T3<TODAY(),"Atenção! É bom você atualizar os Feriados, deixando pelo menos um ano para frente.","") -> 
D17: Versão Gratuita
D18: ** Com limite de 10 cheques em cada troca **
F21: www.planilhasparaconfeccao.com.br
D22: © 2012 - Pedro Paulo Andriani. Todos os direitos reservados. | M22: Para versão paga com limite até 300 cheques em cada troca, visite o site.
F23: Versão 3.4 - gratuita

Sheet Desconto (hidden)
B1: Fornec/Cliente: | F1: Nº Desconto: | G1: =MAX(BD!A:A)+1 -> 1 | T1: =COUNTIF(C6:C15,">0") -> 0 | U1: =IF(U2=FALSE,0,1) -> 0 | V1: =IF(B2>1,1,0) -> 0
C2: =IF(T4="","Data da Troca.","") -> Data da Troca. | F2: Borderô (ou TAC) | T2: =IF(AU!$AB$2=0,0,IF(U3=TRUE,E2/T1,0)) -> 0 | U2: FALSE | V2: =IF(B3>0,1,0) -> 0
C3: =IF(T4="","Juros ao Mês.","") -> Juros ao Mês. | F3: IOF | V3: =IF(B6>1,1,0) -> 0
A4: Seq | B4: Data Vencimentos | C4: Valor Cheque | D4: Titular do Cheque | E4: Nº ou Banco | F4: Nº da Agência | G4: Nº do Cheque | H4: Dias p/ Comp. | I4: Qtde dias | J4: Total dos Juros | K4: Valor do IOF | L4: Valor Pago pela troca | M4: Valor à Receber | T4: =IF(AU!$AB$2=0,"ATENÇÃO! Planilha ''violada'' ou você precisa ''validar'' Entre em contato pelo site informando seu CNPJ ou CPF que você informou quando fez a compra da Planilha.","") ->  | U4: =SUM(V1:V4) -> 0 | V4: =IF(C6>0,1,0) -> 0 | W4: =IF(U4=4,"Registrar","Não clique") -> Não clique
A5: Seq | B5: Data dos Vencimentos | C5: Valor Cheque | D5: Titular do Cheque | E5: Nº ou Banco | F5: Nº da Agência | G5: Nº do Cheque | H5: Dias p/ Comp. | I5: Qtde dias | J5: Total dos Juros | K5: IOF | L5: Valor Pago pela troca | M5: Valor à Receber | N5: XX | O5: XX | P5: XX | Q5: XX | R5: XX | S5: XX | T5: XX | U5: XX | V5: Nº Desconto | W5: Seq. | X5: Concatenar | Y5: Cliente | Z5: Data da Troca | AA5: Data Vencimentos | AB5: Valor Cheque | AC5: Titular do Cheque | AD5: Nº ou Banco | AE5: Nº da Agência | AF5: Nº do Cheque | AG5: Dias p/ Comp. | AH5: Qtde dias | AI5: % Juros Mensal | AJ5: Total dos Juros | AK5: Borderô (ou TAC) | AL5: Borderô rateado? | AM5: % do IOF | AN5: Valor do IOF | AO5: Valor Pago pela troca | AP5: Valor Recebido | AQ5: Asterisco | AR5: Considerado vcto 1º dia útil?
A6: 1 | I6: =IF(AU!$AB$2=0,0,IF(B6=0,0,IF($U$1=0,B6-$B$2+R6,B6-$B$2+T6+R6))) -> 0 | J6: =IF(C6=0,"",$B$3/30*I6) ->  | K6: =IF(AU!$AB$2=0,0,IF(B6=0,0,C6*$E$3)) -> 0 | L6: =IF(C6=0,"",ROUND((C6*J6)+K6+$T$2,2)) ->  | M6: =IF(C6=0,"",C6-L6) ->  | N6: =IF(B6=0,0,IF($U$2=FALSE,"",IF(T6>0,"*",""))) -> 0 | O6: =IF(U6>0,"Devolvido "&U6&" ch",0) -> 0 | P6: =IF(B6=0,0,WEEKDAY(B6,2)) -> 0 | Q6: =IF(P6=6,WORKDAY((B6+2),H6,Feriados!$A$2:$A$202),IF(P6=7,WORKDAY((B6+1),H6,Feriados!$A$2:$A$202),WORKDAY(B6,H6,Feriados!$A$2:$A$202))) -> 0 | R6: =IF(H6=0,0,IF(P6=6,(Q6-(B6+2)),IF(P6=7,(Q6-(B6+1)),Q6-B6))) -> 0 | T6: =IF(B6=0,0,VLOOKUP(B6,Datas!A:C,3,FALSE)) -> 0 | U6: =SUMIF(BD!H:H,D6,BD!AF:AF) -> 0 | V6: =$G$1 -> 1 | W6: =A6 -> 1 | X6: =CONCATENATE(V6,"-",W6) -> 1-1 | Y6: =$C$1 -> 0 | Z6: =$B$2 -> 00:00:00 | AA6: =B6 -> 00:00:00 | AB6: 0 | AC6: 0 | AD6: 0 | AE6: 0 | AF6: 0 | AG6: 0 | AH6: 0 | AI6: =$B$3 -> 0 | AJ6: =J6 ->  | AK6: =$E$2 -> 0 | AL6: =IF($U$3=TRUE,"Sim","Não") -> Não | AM6: =$E$3 -> 0 | AN6: =K6 -> 0 | AO6: =L6 ->  | AP6: =M6 ->  | AQ6: =N6 -> 0 | AR6: =IF($U$2=TRUE,"Sim","Não") -> Não
A7: 2 | I7: =IF(AU!$AB$2=0,0,IF(B7=0,0,IF($U$1=0,B7-$B$2+R7,B7-$B$2+T7+R7))) -> 0 | K7: =IF(AU!$AB$2=0,0,IF(B7=0,0,C7*$E$3)) -> 0 | N7: =IF(B7=0,0,IF($U$2=FALSE,"",IF(T7>0,"*",""))) -> 0 | O7: =IF(U7>0,"Devolvido "&U7&" ch",0) -> 0 | P7: =IF(B7=0,0,WEEKDAY(B7,2)) -> 0 | Q7: =IF(P7=6,WORKDAY((B7+2),H7,Feriados!$A$2:$A$202),IF(P7=7,WORKDAY((B7+1),H7,Feriados!$A$2:$A$202),WORKDAY(B7,H7,Feriados!$A$2:$A$202))) -> 0 | R7: =IF(H7=0,0,IF(P7=6,(Q7-(B7+2)),IF(P7=7,(Q7-(B7+1)),Q7-B7))) -> 0 | T7: =IF(B7=0,0,VLOOKUP(B7,Datas!A:C,3,FALSE)) -> 0 | U7: =SUMIF(BD!H:H,D7,BD!AF:AF) -> 0 | V7: =$G$1 -> 1 | W7: =A7 -> 2 | X7: =CONCATENATE(V7,"-",W7) -> 1-2 | Y7: =$C$1 -> 0 | Z7: =$B$2 -> 00:00:00 | AA7: =B7 -> 00:00:00 | AB7: =C7 -> 0 | AC7: =D7 -> 0 | AD7: =E7 -> 0 | AE7: =F7 -> 0 | AF7: =G7 -> 0 | AG7: =H7 -> 0 | AH7: =I7 -> 0 | AI7: =$B$3 -> 0 | AJ7: =J7 ->  | AK7: =$E$2 -> 0 | AL7: =IF($U$3=TRUE,"Sim","Não") -> Não | AM7: =$E$3 -> 0 | AN7: =K7 -> 0 | AO7: =L7 ->  | AP7: =M7 ->  | AQ7: =N7 -> 0 | AR7: =IF($U$2=TRUE,"Sim","Não") -> Não
A8: 3 | I8: =IF(AU!$AB$2=0,0,IF(B8=0,0,IF($U$1=0,B8-$B$2+R8,B8-$B$2+T8+R8))) -> 0 | J8: =IF(C8=0,"",$B$3/30*I8) ->  | K8: =IF(AU!$AB$2=0,0,IF(B8=0,0,C8*$E$3)) -> 0 | L8: =IF(C8=0,"",ROUND((C8*J8)+K8+$T$2,2)) ->  | M8: =IF(C8=0,"",C8-L8) ->  | N8: 0 | O8: 0 | P8: 0 | Q8: =IF(P8=6,WORKDAY((B8+2),H8,Feriados!$A$2:$A$202),IF(P8=7,WORKDAY((B8+1),H8,Feriados!$A$2:$A$202),WORKDAY(B8,H8,Feriados!$A$2:$A$202))) -> 0 | R8: 0 | T8: =IF(B8=0,0,VLOOKUP(B8,Datas!A:C,3,FALSE)) -> 0 | U8: =SUMIF(BD!H:H,D8,BD!AF:AF) -> 0 | V8: 1 | W8: 3 | X8: 1-3 | Y8: 0 | Z8: 00:00:00 | AA8: 00:00:00 | AB8: 0 | AC8: 0 | AD8: 0 | AE8: 0 | AF8: 0 | AG8: 0 | AH8: 0 | AI8: 0 | AK8: 0 | AL8: Não | AM8: 0 | AN8: 0 | AQ8: 0 | AR8: Não
A9: 4 | I9: =IF(AU!$AB$2=0,0,IF(B9=0,0,IF($U$1=0,B9-$B$2+R9,B9-$B$2+T9+R9))) -> 0 | K9: =IF(AU!$AB$2=0,0,IF(B9=0,0,C9*$E$3)) -> 0 | N9: 0 | O9: 0 | P9: 0 | Q9: =IF(P9=6,WORKDAY((B9+2),H9,Feriados!$A$2:$A$202),IF(P9=7,WORKDAY((B9+1),H9,Feriados!$A$2:$A$202),WORKDAY(B9,H9,Feriados!$A$2:$A$202))) -> 0 | R9: 0 | T9: =IF(B9=0,0,VLOOKUP(B9,Datas!A:C,3,FALSE)) -> 0 | U9: =SUMIF(BD!H:H,D9,BD!AF:AF) -> 0 | V9: 1 | W9: 4 | X9: 1-4 | Y9: 0 | Z9: 00:00:00 | AA9: 00:00:00 | AB9: 0 | AC9: 0 | AD9: 0 | AE9: 0 | AF9: 0 | AG9: 0 | AH9: 0 | AI9: 0 | AK9: 0 | AL9: Não | AM9: 0 | AN9: 0 | AQ9: 0 | AR9: Não
A10: 5 | I10: =IF(AU!$AB$2=0,0,IF(B10=0,0,IF($U$1=0,B10-$B$2+R10,B10-$B$2+T10+R10))) -> 0 | J10: =IF(C10=0,"",$B$3/30*I10) ->  | K10: =IF(AU!$AB$2=0,0,IF(B10=0,0,C10*$E$3)) -> 0 | L10: =IF(C10=0,"",ROUND((C10*J10)+K10+$T$2,2)) ->  | M10: =IF(C10=0,"",C10-L10) ->  | N10: 0 | O10: 0 | P10: 0 | Q10: =IF(P10=6,WORKDAY((B10+2),H10,Feriados!$A$2:$A$202),IF(P10=7,WORKDAY((B10+1),H10,Feriados!$A$2:$A$202),WORKDAY(B10,H10,Feriados!$A$2:$A$202))) -> 0 | R10: 0 | T10: =IF(B10=0,0,VLOOKUP(B10,Datas!A:C,3,FALSE)) -> 0 | U10: =SUMIF(BD!H:H,D10,BD!AF:AF) -> 0 | V10: 1 | W10: 5 | X10: 1-5 | Y10: 0 | Z10: 00:00:00 | AA10: 00:00:00 | AB10: 0 | AC10: 0 | AD10: 0 | AE10: 0 | AF10: 0 | AG10: 0 | AH10: 0 | AI10: 0 | AK10: 0 | AL10: Não | AM10: 0 | AN10: 0 | AQ10: 0 | AR10: Não
A11: 6 | I11: =IF(AU!$AB$2=0,0,IF(B11=0,0,IF($U$1=0,B11-$B$2+R11,B11-$B$2+T11+R11))) -> 0 | K11: =IF(AU!$AB$2=0,0,IF(B11=0,0,C11*$E$3)) -> 0 | N11: 0 | O11: 0 | P11: 0 | Q11: =IF(P11=6,WORKDAY((B11+2),H11,Feriados!$A$2:$A$202),IF(P11=7,WORKDAY((B11+1),H11,Feriados!$A$2:$A$202),WORKDAY(B11,H11,Feriados!$A$2:$A$202))) -> 0 | R11: 0 | T11: =IF(B11=0,0,VLOOKUP(B11,Datas!A:C,3,FALSE)) -> 0 | U11: =SUMIF(BD!H:H,D11,BD!AF:AF) -> 0 | V11: 1 | W11: 6 | X11: 1-6 | Y11: 0 | Z11: 00:00:00 | AA11: 00:00:00 | AB11: 0 | AC11: 0 | AD11: 0 | AE11: 0 | AF11: 0 | AG11: 0 | AH11: 0 | AI11: 0 | AK11: 0 | AL11: Não | AM11: 0 | AN11: 0 | AQ11: 0 | AR11: Não
A12: 7 | I12: =IF(AU!$AB$2=0,0,IF(B12=0,0,IF($U$1=0,B12-$B$2+R12,B12-$B$2+T12+R12))) -> 0 | K12: =IF(AU!$AB$2=0,0,IF(B12=0,0,C12*$E$3)) -> 0 | N12: 0 | O12: 0 | P12: 0 | Q12: =IF(P12=6,WORKDAY((B12+2),H12,Feriados!$A$2:$A$202),IF(P12=7,WORKDAY((B12+1),H12,Feriados!$A$2:$A$202),WORKDAY(B12,H12,Feriados!$A$2:$A$202))) -> 0 | R12: 0 | T12: =IF(B12=0,0,VLOOKUP(B12,Datas!A:C,3,FALSE)) -> 0 | U12: =SUMIF(BD!H:H,D12,BD!AF:AF) -> 0 | V12: 1 | W12: 7 | X12: 1-7 | Y12: 0 | Z12: 00:00:00 | AA12: 00:00:00 | AB12: 0 | AC12: 0 | AD12: 0 | AE12: 0 | AF12: 0 | AG12: 0 | AH12: 0 | AI12: 0 | AK12: 0 | AL12: Não | AM12: 0 | AN12: 0 | AQ12: 0 | AR12: Não
A13: 8 | I13: =IF(AU!$AB$2=0,0,IF(B13=0,0,IF($U$1=0,B13-$B$2+R13,B13-$B$2+T13+R13))) -> 0 | J13: =IF(C13=0,"",$B$3/30*I13) ->  | K13: =IF(AU!$AB$2=0,0,IF(B13=0,0,C13*$E$3)) -> 0 | L13: =IF(C13=0,"",ROUND((C13*J13)+K13+$T$2,2)) ->  | M13: =IF(C13=0,"",C13-L13) ->  | N13: 0 | O13: 0 | P13: 0 | Q13: =IF(P13=6,WORKDAY((B13+2),H13,Feriados!$A$2:$A$202),IF(P13=7,WORKDAY((B13+1),H13,Feriados!$A$2:$A$202),WORKDAY(B13,H13,Feriados!$A$2:$A$202))) -> 0 | R13: 0 | T13: =IF(B13=0,0,VLOOKUP(B13,Datas!A:C,3,FALSE)) -> 0 | U13: =SUMIF(BD!H:H,D13,BD!AF:AF) -> 0 | V13: 1 | W13: 8 | X13: 1-8 | Y13: 0 | Z13: 00:00:00 | AA13: 00:00:00 | AB13: 0 | AC13: 0 | AD13: 0 | AE13: 0 | AF13: 0 | AG13: 0 | AH13: 0 | AI13: 0 | AK13: 0 | AL13: Não | AM13: 0 | AN13: 0 | AQ13: 0 | AR13: Não
A14: 9 | I14: =IF(AU!$AB$2=0,0,IF(B14=0,0,IF($U$1=0,B14-$B$2+R14,B14-$B$2+T14+R14))) -> 0 | J14: =IF(C14=0,"",$B$3/30*I14) ->  | K14: =IF(AU!$AB$2=0,0,IF(B14=0,0,C14*$E$3)) -> 0 | L14: =IF(C14=0,"",ROUND((C14*J14)+K14+$T$2,2)) ->  | M14: =IF(C14=0,"",C14-L14) ->  | N14: 0 | O14: 0 | P14: 0 | Q14: =IF(P14=6,WORKDAY((B14+2),H14,Feriados!$A$2:$A$202),IF(P14=7,WORKDAY((B14+1),H14,Feriados!$A$2:$A$202),WORKDAY(B14,H14,Feriados!$A$2:$A$202))) -> 0 | R14: 0 | T14: =IF(B14=0,0,VLOOKUP(B14,Datas!A:C,3,FALSE)) -> 0 | U14: =SUMIF(BD!H:H,D14,BD!AF:AF) -> 0 | V14: 1 | W14: 9 | X14: 1-9 | Y14: 0 | Z14: 00:00:00 | AA14: 00:00:00 | AB14: 0 | AC14: 0 | AD14: 0 | AE14: 0 | AF14: 0 | AG14: 0 | AH14: 0 | AI14: 0 | AK14: 0 | AL14: Não | AM14: 0 | AN14: 0 | AQ14: 0 | AR14: Não
A15: 10 | I15: =IF(AU!$AB$2=0,0,IF(B15=0,0,IF($U$1=0,B15-$B$2+R15,B15-$B$2+T15+R15))) -> 0 | K15: =IF(AU!$AB$2=0,0,IF(B15=0,0,C15*$E$3)) -> 0 | N15: =IF(B15=0,0,IF($U$2=FALSE,"",IF(T15>0,"*",""))) -> 0 | O15: =IF(U15>0,"Devolvido "&U15&" ch",0) -> 0 | P15: 0 | Q15: =IF(P15=6,WORKDAY((B15+2),H15,Feriados!$A$2:$A$202),IF(P15=7,WORKDAY((B15+1),H15,Feriados!$A$2:$A$202),WORKDAY(B15,H15,Feriados!$A$2:$A$202))) -> 0 | R15: 0 | T15: =IF(B15=0,0,VLOOKUP(B15,Datas!A:C,3,FALSE)) -> 0 | U15: =SUMIF(BD!H:H,D15,BD!AF:AF) -> 0 | V15: =$G$1 -> 1 | W15: =A15 -> 10 | X15: =CONCATENATE(V15,"-",W15) -> 1-10 | Y15: =$C$1 -> 0 | Z15: =$B$2 -> 00:00:00 | AA15: =B15 -> 00:00:00 | AB15: =C15 -> 0 | AC15: =D15 -> 0 | AD15: =E15 -> 0 | AE15: =F15 -> 0 | AF15: =G15 -> 0 | AG15: =H15 -> 0 | AH15: =I15 -> 0 | AI15: =$B$3 -> 0 | AJ15: =J15 ->  | AK15: =$E$2 -> 0 | AL15: =IF($U$3=TRUE,"Sim","Não") -> Não | AM15: =$E$3 -> 0 | AN15: =K15 -> 0 | AO15: =L15 ->  | AP15: =M15 ->  | AQ15: =N15 -> 0 | AR15: =IF($U$2=TRUE,"Sim","Não") -> Não
C16: =SUBTOTAL(9,C6:C15) -> 0 | K16: =SUBTOTAL(9,K6:K15) -> 0 | L16: =SUBTOTAL(9,L6:L15) -> 0 | M16: =SUBTOTAL(9,M6:M15) -> 0
I17: =IF(SUM(I6:I15)=0,0,AVERAGEIF(I6:I15,">0")) -> 0 | L17: Borderô (ou TAC) => | M17: =IF(E2=0,0,IF(U3=TRUE," rateado",E2-(E2*2))) -> 0
I18: Média | L18: Valor à receber => | M18: =IF(U3=TRUE,M16,M16+M17) -> 0
L19: =IF(M19>0,"Valor recebido =>",".") -> .
L20: =IF(M20<>0,"Diferença =>",".") -> . | M20: =IF(M19=0,0,M19-M18) -> 0

Sheet Feriados (hidden)
A1: Feriados Nacional e Bancário | B1: Descrição do Feriado (não obrigatório) | C1: Observações | F1: Datas Dia / mês | G1: Feriados Nacionais no ano
A2: 2022-01-01 | B2: Confraternização Universal | F2: 01 janeiro | G2: Confraternização Universal
A3: 2022-02-28 | B3: Carnaval | C3: Feriado móvel | F3: móvel | G3: Carnaval
A4: 2022-03-01 | B4: Carnaval | C4: Feriado móvel | F4: móvel | G4: Paixão de Cristo (sexta-feira Santa)
A5: 2022-04-15 | B5: Paixão de Cristo (sexta-feira Santa) | C5: Feriado móvel | F5: 21 abril | G5: Tiradentes
A6: 2022-04-21 | B6: Tiradentes | F6: 01 maio | G6: Dia do Trabalho
A7: 2022-05-01 | B7: Dia do Trabalho | F7: móvel | G7: Corpus Christi
A8: 2022-06-16 | B8: Corpus Christi | C8: Feriado móvel | F8: 07 setembro | G8: Independência do Brasil
A9: 2022-09-07 | B9: Independência do Brasil | F9: 02 novembro | G9: Finados
A10: 2022-10-12 | B10: Nossa Sra. Aparecida | F10: 15 novembro | G10: Proclamação da República
A11: 2022-11-02 | B11: Finados | F11: 25 dezembro | G11: Natal
A12: 2022-11-15 | B12: Proclamação da República | G12: Aniversário da Cidade
A13: 2022-12-25 | B13: Natal | G13: Outros 1
A14: 2023-01-01 | B14: Confraternização Universal | G14: Outros 2
A15: 2023-02-20 | B15: Carnaval | C15: Feriado móvel
A16: 2023-02-21 | B16: Carnaval | C16: Feriado móvel
A17: 2023-04-07 | B17: Paixão de Cristo (sexta-feira Santa) | C17: Feriado móvel
A18: 2023-04-21 | B18: Tiradentes
A19: 2023-05-01 | B19: Dia do Trabalho
A20: 2023-06-08 | B20: Corpus Christi | C20: Feriado móvel
A21: 2023-09-07 | B21: Independência do Brasil
A22: 2023-10-12 | B22: Nossa Sra. Aparecida
A23: 2023-11-02 | B23: Finados
A24: 2023-11-15 | B24: Proclamação da República
A25: 2023-12-25 | B25: Natal
A26: 2024-01-01 | B26: Confraternização Universal
A27: 2024-02-12 | B27: Carnaval | C27: Feriado móvel
A28: 2024-02-13 | B28: Carnaval | C28: Feriado móvel
A29: 2024-03-29 | B29: Paixão de Cristo (sexta-feira Santa) | C29: Feriado móvel
A30: 2024-04-21 | B30: Tiradentes
A31: 2024-05-01 | B31: Dia do Trabalho
A32: 2024-05-30 | B32: Corpus Christi | C32: Feriado móvel
A33: 2024-09-07 | B33: Independência do Brasil
A34: 2024-10-12 | B34: Nossa Sra. Aparecida
A35: 2024-11-02 | B35: Finados
A36: 2024-11-15 | B36: Proclamação da República
A37: 2024-12-25 | B37: Natal
A38: 2025-01-01 | B38: Confraternização Universal
A39: 2025-03-03 | B39: Carnaval | C39: Feriado móvel
A40: 2025-03-04 | B40: Carnaval | C40: Feriado móvel
A41: 2025-04-18 | B41: Paixão de Cristo (sexta-feira Santa) | C41: Feriado móvel
A42: 2025-04-21 | B42: Tiradentes
A43: 2025-05-01 | B43: Dia do Trabalho
A44: 2025-06-19 | B44: Corpus Christi | C44: Feriado móvel
A45: 2025-09-07 | B45: Independência do Brasil
A46: 2025-10-12 | B46: Nossa Sra. Aparecida
A47: 2025-11-02 | B47: Finados
A48: 2025-11-15 | B48: Proclamação da República
A49: 2025-12-25 | B49: Natal
A50: 2026-01-01 | B50: Confraternização Universal
A51: 2026-02-16 | B51: Carnaval | C51: Feriado móvel
A52: 2026-02-17 | B52: Carnaval | C52: Feriado móvel
A53: 2026-04-03 | B53: Paixão de Cristo (sexta-feira Santa) | C53: Feriado móvel
A54: 2026-04-21 | B54: Tiradentes
A55: 2026-05-01 | B55: Dia do Trabalho
A56: 2026-06-04 | B56: Corpus Christi | C56: Feriado móvel
A57: 2026-09-07 | B57: Independência do Brasil
A58: 2026-10-12 | B58: Nossa Sra. Aparecida
A59: 2026-11-02 | B59: Finados
A60: 2026-11-15 | B60: Proclamação da República
A61: 2026-12-25 | B61: Natal
A62: 2027-01-01 | B62: Confraternização Universal
A63: 2027-02-08 | B63: Carnaval | C63: Feriado móvel
A64: 2027-02-09 | B64: Carnaval | C64: Feriado móvel
A65: 2027-03-26 | B65: Paixão de Cristo (sexta-feira Santa) | C65: Feriado móvel
A66: 2027-04-21 | B66: Tiradentes
A67: 2027-05-01 | B67: Dia do Trabalho
A68: 2027-05-27 | B68: Corpus Christi | C68: Feriado móvel
A69: 2027-09-07 | B69: Independência do Brasil
A70: 2027-10-12 | B70: Nossa Sra. Aparecida
A71: 2027-11-02 | B71: Finados
A72: 2027-11-15 | B72: Proclamação da República
A73: 2027-12-25 | B73: Natal
A74: 2028-01-01 | B74: Confraternização Universal
A75: 2028-02-28 | B75: Carnaval | C75: Feriado móvel
A76: 2028-02-29 | B76: Carnaval | C76: Feriado móvel
A77: 2028-04-14 | B77: Paixão de Cristo (sexta-feira Santa) | C77: Feriado móvel
A78: 2028-04-21 | B78: Tiradentes
A79: 2028-05-01 | B79: Dia do Trabalho
A80: 2028-06-15 | B80: Corpus Christi | C80: Feriado móvel
A81: 2028-09-07 | B81: Independência do Brasil
A82: 2028-10-12 | B82: Nossa Sra. Aparecida
A83: 2028-11-02 | B83: Finados
A84: 2028-11-15 | B84: Proclamação da República
A85: 2028-12-25 | B85: Natal
A86: 2029-01-01 | B86: Confraternização Universal
A87: 2029-02-12 | B87: Carnaval | C87: Feriado móvel
A88: 2029-02-13 | B88: Carnaval | C88: Feriado móvel
A89: 2029-03-30 | B89: Paixão de Cristo (sexta-feira Santa) | C89: Feriado móvel
A90: 2029-04-21 | B90: Tiradentes
A91: 2029-05-01 | B91: Dia do Trabalho
A92: 2029-05-31 | B92: Corpus Christi | C92: Feriado móvel
A93: 2029-09-07 | B93: Independência do Brasil
A94: 2029-10-12 | B94: Nossa Sra. Aparecida
A95: 2029-11-02 | B95: Finados
A96: 2029-11-15 | B96: Proclamação da República
A97: 2029-12-25 | B97: Natal
A98: 2030-01-01 | B98: Confraternização Universal
A99: 2030-03-04 | B99: Carnaval | C99: Feriado móvel
A100: 2030-03-05 | B100: Carnaval | C100: Feriado móvel
A101: 2030-04-19 | B101: Paixão de Cristo (sexta-feira Santa) | C101: Feriado móvel
A102: 2030-04-21 | B102: Tiradentes
A103: 2030-05-01 | B103: Dia do Trabalho
A104: 2030-06-20 | B104: Corpus Christi | C104: Feriado móvel
A105: 2030-09-07 | B105: Independência do Brasil
A106: 2030-10-12 | B106: Nossa Sra. Aparecida
A107: 2030-11-02 | B107: Finados
A108: 2030-11-15 | B108: Proclamação da República
A109: 2030-12-25 | B109: Natal
A110: 2031-01-01 | B110: Confraternização Universal
A111: 2031-02-24 | B111: Carnaval | C111: Feriado móvel
A112: 2031-02-25 | B112: Carnaval | C112: Feriado móvel
A113: 2031-04-11 | B113: Paixão de Cristo | C113: Feriado móvel
A114: 2031-04-13 | B114: Páscoa
A115: 2031-04-21 | B115: Tiradentes
A116: 2031-05-01 | B116: Dia do Trabalho
A117: 2031-06-12 | B117: Corpus Christi | C117: Feriado móvel
A118: 2031-09-07 | B118: Independência do Brasil
A119: 2031-10-12 | B119: Nossa Senhora da Aparecida
A120: 2031-11-02 | B120: Finados
A121: 2031-11-15 | B121: Proclamação da República
A122: 2031-12-25 | B122: Natal
A123: 2032-01-01 | B123: Confraternização Universal
A124: 2032-02-09 | B124: Carnaval | C124: Feriado móvel
A125: 2032-02-10 | B125: Carnaval | C125: Feriado móvel
A126: 2032-03-26 | B126: Paixão de Cristo | C126: Feriado móvel
A127: 2032-03-28 | B127: Páscoa
A128: 2032-04-21 | B128: Tiradentes
A129: 2032-05-01 | B129: Dia do Trabalho
A130: 2032-05-27 | B130: Corpus Christi | C130: Feriado móvel
A131: 2032-09-07 | B131: Independência do Brasil
A132: 2032-10-12 | B132: Nossa Senhora da Aparecida
A133: 2032-11-02 | B133: Finados
A134: 2032-11-15 | B134: Proclamação da República
A135: 2032-12-25 | B135: Natal
A136: 2033-01-01 | B136: Confraternização Universal
A137: 2033-02-28 | B137: Carnaval | C137: Feriado móvel
A138: 2033-03-01 | B138: Carnaval | C138: Feriado móvel
A139: 2033-04-15 | B139: Paixão de Cristo | C139: Feriado móvel
A140: 2033-04-17 | B140: Páscoa
A141: 2033-04-21 | B141: Tiradentes
A142: 2033-05-01 | B142: Dia do Trabalho
A143: 2033-06-16 | B143: Corpus Christi | C143: Feriado móvel
A144: 2033-09-07 | B144: Independência do Brasil
A145: 2033-10-12 | B145: Nossa Senhora da Aparecida
A146: 2033-11-02 | B146: Finados
A147: 2033-11-15 | B147: Proclamação da República
A148: 2033-12-25 | B148: Natal
A149: 2034-01-01 | B149: Confraternização Universal
A150: 2034-02-20 | B150: Carnaval | C150: Feriado móvel
A151: 2034-02-21 | B151: Carnaval | C151: Feriado móvel
A152: 2034-04-07 | B152: Paixão de Cristo | C152: Feriado móvel
A153: 2034-04-09 | B153: Páscoa
A154: 2034-04-21 | B154: Tiradentes
A155: 2034-05-01 | B155: Dia do Trabalho
A156: 2034-06-08 | B156: Corpus Christi | C156: Feriado móvel
A157: 2034-09-07 | B157: Independência do Brasil
A158: 2034-10-12 | B158: Nossa Senhora da Aparecida
A159: 2034-11-02 | B159: Finados
A160: 2034-11-15 | B160: Proclamação da República
A161: 2034-12-25 | B161: Natal
A162: 2035-01-01 | B162: Confraternização Universal
A163: 2035-02-05 | B163: Carnaval | C163: Feriado móvel
A164: 2035-02-06 | B164: Carnaval | C164: Feriado móvel
A165: 2035-03-23 | B165: Paixão de Cristo | C165: Feriado móvel
A166: 2035-03-25 | B166: Páscoa
A167: 2035-04-21 | B167: Tiradentes
A168: 2035-05-01 | B168: Dia do Trabalho
A169: 2035-05-24 | B169: Corpus Christi | C169: Feriado móvel
A170: 2035-09-07 | B170: Independência do Brasil
A171: 2035-10-12 | B171: Nossa Senhora da Aparecida
A172: 2035-11-02 | B172: Finados
A173: 2035-11-15 | B173: Proclamação da República
A174: 2035-12-25 | B174: Natal

Sheet Datas (hidden)
A1: Datas | B1: Seq. | C1: Para somar | D1: nº dia | E1: Feriado | G1: Para atualizar basta digitar a nova data inicial na Célula "A2".
A2: 2022-01-01 | B2: =NETWORKDAYS($A$2,A2,feriados) -> 0 | C2: =IF(E2<>"n",COUNTIF(B2:$B$4018,B2),IF(D2<6,0,COUNTIF(B2:$B$4018,B2))) -> 2 | D2: =WEEKDAY(A2,2) -> 6 | E2: =IF(ISERROR(VLOOKUP(A2,Feriados!A:A,1,FALSE)),"n",VLOOKUP(A2,Feriados!A:A,1,FALSE)) -> 2022-01-01
A3: =A2+1 -> 44563 | B3: =NETWORKDAYS($A$2,A3,feriados) -> 0 | C3: =IF(E3<>"n",COUNTIF(B3:$B$4018,B3),IF(D3<6,0,COUNTIF(B3:$B$4018,B3))) -> 1 | D3: =WEEKDAY(A3,2) -> 7 | E3: =IF(ISERROR(VLOOKUP(A3,Feriados!A:A,1,FALSE)),"n",VLOOKUP(A3,Feriados!A:A,1,FALSE)) -> n | H3: Data do Calendário
A4: =A3+1 -> 44564 | B4: 1 | C4: =IF(E4<>"n",COUNTIF(B4:$B$4018,B4),IF(D4<6,0,COUNTIF(B4:$B$4018,B4))) -> 0 | D4: 1 | E4: =IF(ISERROR(VLOOKUP(A4,Feriados!A:A,1,FALSE)),"n",VLOOKUP(A4,Feriados!A:A,1,FALSE)) -> n | G4: De: | H4: =A2 -> 2022-01-01
A5: 44565 | B5: 2 | C5: =IF(E5<>"n",COUNTIF(B5:$B$4018,B5),IF(D5<6,0,COUNTIF(B5:$B$4018,B5))) -> 0 | D5: 2 | E5: =IF(ISERROR(VLOOKUP(A5,Feriados!A:A,1,FALSE)),"n",VLOOKUP(A5,Feriados!A:A,1,FALSE)) -> n | G5: Até: | H5: =A4018 -> 2032-12-30
A6: 44566 | B6: 3 | C6: =IF(E6<>"n",COUNTIF(B6:$B$4018,B6),IF(D6<6,0,COUNTIF(B6:$B$4018,B6))) -> 0 | D6: 3 | E6: =IF(ISERROR(VLOOKUP(A6,Feriados!A:A,1,FALSE)),"n",VLOOKUP(A6,Feriados!A:A,1,FALSE)) -> n | G6: Validade: | H6: =(H5-H4)/365 -> 11.00273973
A7: 44567 | B7: 4 | C7: =IF(E7<>"n",COUNTIF(B7:$B$4018,B7),IF(D7<6,0,COUNTIF(B7:$B$4018,B7))) -> 0 | D7: 4 | E7: =IF(ISERROR(VLOOKUP(A7,Feriados!A:A,1,FALSE)),"n",VLOOKUP(A7,Feriados!A:A,1,FALSE)) -> n
A8: 44568 | B8: 5 | C8: =IF(E8<>"n",COUNTIF(B8:$B$4018,B8),IF(D8<6,0,COUNTIF(B8:$B$4018,B8))) -> 0 | D8: 5 | E8: =IF(ISERROR(VLOOKUP(A8,Feriados!A:A,1,FALSE)),"n",VLOOKUP(A8,Feriados!A:A,1,FALSE)) -> n
A9: 44569 | B9: 5 | C9: =IF(E9<>"n",COUNTIF(B9:$B$4018,B9),IF(D9<6,0,COUNTIF(B9:$B$4018,B9))) -> 2 | D9: 6 | E9: =IF(ISERROR(VLOOKUP(A9,Feriados!A:A,1,FALSE)),"n",VLOOKUP(A9,Feriados!A:A,1,FALSE)) -> n
A10: 44570 | B10: 5 | C10: =IF(E10<>"n",COUNTIF(B10:$B$4018,B10),IF(D10<6,0,COUNTIF(B10:$B$4018,B10))) -> 1 | D10: 7 | E10: =IF(ISERROR(VLOOKUP(A10,Feriados!A:A,1,FALSE)),"n",VLOOKUP(A10,Feriados!A:A,1,FALSE)) -> n
A11: 44571 | B11: 6 | C11: =IF(E11<>"n",COUNTIF(B11:$B$4018,B11),IF(D11<6,0,COUNTIF(B11:$B$4018,B11))) -> 0 | D11: 1 | E11: =IF(ISERROR(VLOOKUP(A11,Feriados!A:A,1,FALSE)),"n",VLOOKUP(A11,Feriados!A:A,1,FALSE)) -> n
A12: 44572 | B12: 7 | C12: =IF(E12<>"n",COUNTIF(B12:$B$4018,B12),IF(D12<6,0,COUNTIF(B12:$B$4018,B12))) -> 0 | D12: 2 | E12: =IF(ISERROR(VLOOKUP(A12,Feriados!A:A,1,FALSE)),"n",VLOOKUP(A12,Feriados!A:A,1,FALSE)) -> n
A13: 44573 | B13: 8 | C13: =IF(E13<>"n",COUNTIF(B13:$B$4018,B13),IF(D13<6,0,COUNTIF(B13:$B$4018,B13))) -> 0 | D13: 3 | E13: =IF(ISERROR(VLOOKUP(A13,Feriados!A:A,1,FALSE)),"n",VLOOKUP(A13,Feriados!A:A,1,FALSE)) -> n
A14: 44574 | B14: 9 | C14: =IF(E14<>"n",COUNTIF(B14:$B$4018,B14),IF(D14<6,0,COUNTIF(B14:$B$4018,B14))) -> 0 | D14: 4 | E14: =IF(ISERROR(VLOOKUP(A14,Feriados!A:A,1,FALSE)),"n",VLOOKUP(A14,Feriados!A:A,1,FALSE)) -> n
A15: 44575 | B15: 10 | C15: =IF(E15<>"n",COUNTIF(B15:$B$4018,B15),IF(D15<6,0,COUNTIF(B15:$B$4018,B15))) -> 0 | D15: 5 | E15: =IF(ISERROR(VLOOKUP(A15,Feriados!A:A,1,FALSE)),"n",VLOOKUP(A15,Feriados!A:A,1,FALSE)) -> n
A16: 44576 | B16: 10 | C16: =IF(E16<>"n",COUNTIF(B16:$B$4018,B16),IF(D16<6,0,COUNTIF(B16:$B$4018,B16))) -> 2 | D16: 6 | E16: =IF(ISERROR(VLOOKUP(A16,Feriados!A:A,1,FALSE)),"n",VLOOKUP(A16,Feriados!A:A,1,FALSE)) -> n
A17: 44577 | B17: 10 | C17: =IF(E17<>"n",COUNTIF(B17:$B$4018,B17),IF(D17<6,0,COUNTIF(B17:$B$4018,B17))) -> 1 | D17: 7 | E17: =IF(ISERROR(VLOOKUP(A17,Feriados!A:A,1,FALSE)),"n",VLOOKUP(A17,Feriados!A:A,1,FALSE)) -> n
A18: 44578 | B18: 11 | C18: =IF(E18<>"n",COUNTIF(B18:$B$4018,B18),IF(D18<6,0,COUNTIF(B18:$B$4018,B18))) -> 0 | D18: 1 | E18: =IF(ISERROR(VLOOKUP(A18,Feriados!A:A,1,FALSE)),"n",VLOOKUP(A18,Feriados!A:A,1,FALSE)) -> n
A19: 44579 | B19: 12 | C19: =IF(E19<>"n",COUNTIF(B19:$B$4018,B19),IF(D19<6,0,COUNTIF(B19:$B$4018,B19))) -> 0 | D19: 2 | E19: =IF(ISERROR(VLOOKUP(A19,Feriados!A:A,1,FALSE)),"n",VLOOKUP(A19,Feriados!A:A,1,FALSE)) -> n
A20: 44580 | B20: 13 | C20: =IF(E20<>"n",COUNTIF(B20:$B$4018,B20),IF(D20<6,0,COUNTIF(B20:$B$4018,B20))) -> 0 | D20: 3 | E20: =IF(ISERROR(VLOOKUP(A20,Feriados!A:A,1,FALSE)),"n",VLOOKUP(A20,Feriados!A:A,1,FALSE)) -> n
A21: 44581 | B21: 14 | C21: =IF(E21<>"n",COUNTIF(B21:$B$4018,B21),IF(D21<6,0,COUNTIF(B21:$B$4018,B21))) -> 0 | D21: 4 | E21: =IF(ISERROR(VLOOKUP(A21,Feriados!A:A,1,FALSE)),"n",VLOOKUP(A21,Feriados!A:A,1,FALSE)) -> n
A22: 44582 | B22: 15 | C22: =IF(E22<>"n",COUNTIF(B22:$B$4018,B22),IF(D22<6,0,COUNTIF(B22:$B$4018,B22))) -> 0 | D22: 5 | E22: =IF(ISERROR(VLOOKUP(A22,Feriados!A:A,1,FALSE)),"n",VLOOKUP(A22,Feriados!A:A,1,FALSE)) -> n
A23: 44583 | B23: 15 | C23: =IF(E23<>"n",COUNTIF(B23:$B$4018,B23),IF(D23<6,0,COUNTIF(B23:$B$4018,B23))) -> 2 | D23: 6 | E23: =IF(ISERROR(VLOOKUP(A23,Feriados!A:A,1,FALSE)),"n",VLOOKUP(A23,Feriados!A:A,1,FALSE)) -> n
A24: 44584 | B24: 15 | C24: =IF(E24<>"n",COUNTIF(B24:$B$4018,B24),IF(D24<6,0,COUNTIF(B24:$B$4018,B24))) -> 1 | D24: 7 | E24: =IF(ISERROR(VLOOKUP(A24,Feriados!A:A,1,FALSE)),"n",VLOOKUP(A24,Feriados!A:A,1,FALSE)) -> n
A25: 44585 | B25: 16 | C25: =IF(E25<>"n",COUNTIF(B25:$B$4018,B25),IF(D25<6,0,COUNTIF(B25:$B$4018,B25))) -> 0 | D25: 1 | E25: =IF(ISERROR(VLOOKUP(A25,Feriados!A:A,1,FALSE)),"n",VLOOKUP(A25,Feriados!A:A,1,FALSE)) -> n
A26: 44586 | B26: 17 | C26: =IF(E26<>"n",COUNTIF(B26:$B$4018,B26),IF(D26<6,0,COUNTIF(B26:$B$4018,B26))) -> 0 | D26: 2 | E26: =IF(ISERROR(VLOOKUP(A26,Feriados!A:A,1,FALSE)),"n",VLOOKUP(A26,Feriados!A:A,1,FALSE)) -> n
A27: 44587 | B27: 18 | C27: =IF(E27<>"n",COUNTIF(B27:$B$4018,B27),IF(D27<6,0,COUNTIF(B27:$B$4018,B27))) -> 0 | D27: 3 | E27: =IF(ISERROR(VLOOKUP(A27,Feriados!A:A,1,FALSE)),"n",VLOOKUP(A27,Feriados!A:A,1,FALSE)) -> n
A28: 44588 | B28: 19 | C28: =IF(E28<>"n",COUNTIF(B28:$B$4018,B28),IF(D28<6,0,COUNTIF(B28:$B$4018,B28))) -> 0 | D28: 4 | E28: =IF(ISERROR(VLOOKUP(A28,Feriados!A:A,1,FALSE)),"n",VLOOKUP(A28,Feriados!A:A,1,FALSE)) -> n
A29: 44589 | B29: 20 | C29: =IF(E29<>"n",COUNTIF(B29:$B$4018,B29),IF(D29<6,0,COUNTIF(B29:$B$4018,B29))) -> 0 | D29: 5 | E29: =IF(ISERROR(VLOOKUP(A29,Feriados!A:A,1,FALSE)),"n",VLOOKUP(A29,Feriados!A:A,1,FALSE)) -> n
A30: 44590 | B30: 20 | C30: =IF(E30<>"n",COUNTIF(B30:$B$4018,B30),IF(D30<6,0,COUNTIF(B30:$B$4018,B30))) -> 2 | D30: 6 | E30: =IF(ISERROR(VLOOKUP(A30,Feriados!A:A,1,FALSE)),"n",VLOOKUP(A30,Feriados!A:A,1,FALSE)) -> n
A31: 44591 | B31: 20 | C31: =IF(E31<>"n",COUNTIF(B31:$B$4018,B31),IF(D31<6,0,COUNTIF(B31:$B$4018,B31))) -> 1 | D31: 7 | E31: =IF(ISERROR(VLOOKUP(A31,Feriados!A:A,1,FALSE)),"n",VLOOKUP(A31,Feriados!A:A,1,FALSE)) -> n
A32: 44592 | B32: 21 | C32: =IF(E32<>"n",COUNTIF(B32:$B$4018,B32),IF(D32<6,0,COUNTIF(B32:$B$4018,B32))) -> 0 | D32: 1 | E32: =IF(ISERROR(VLOOKUP(A32,Feriados!A:A,1,FALSE)),"n",VLOOKUP(A32,Feriados!A:A,1,FALSE)) -> n
A33: 44593 | B33: 22 | C33: =IF(E33<>"n",COUNTIF(B33:$B$4018,B33),IF(D33<6,0,COUNTIF(B33:$B$4018,B33))) -> 0 | D33: 2 | E33: =IF(ISERROR(VLOOKUP(A33,Feriados!A:A,1,FALSE)),"n",VLOOKUP(A33,Feriados!A:A,1,FALSE)) -> n
A34: 44594 | B34: 23 | C34: =IF(E34<>"n",COUNTIF(B34:$B$4018,B34),IF(D34<6,0,COUNTIF(B34:$B$4018,B34))) -> 0 | D34: 3 | E34: =IF(ISERROR(VLOOKUP(A34,Feriados!A:A,1,FALSE)),"n",VLOOKUP(A34,Feriados!A:A,1,FALSE)) -> n
A35: 44595 | B35: 24 | C35: =IF(E35<>"n",COUNTIF(B35:$B$4018,B35),IF(D35<6,0,COUNTIF(B35:$B$4018,B35))) -> 0 | D35: 4 | E35: =IF(ISERROR(VLOOKUP(A35,Feriados!A:A,1,FALSE)),"n",VLOOKUP(A35,Feriados!A:A,1,FALSE)) -> n
A36: 44596 | B36: 25 | C36: =IF(E36<>"n",COUNTIF(B36:$B$4018,B36),IF(D36<6,0,COUNTIF(B36:$B$4018,B36))) -> 0 | D36: 5 | E36: =IF(ISERROR(VLOOKUP(A36,Feriados!A:A,1,FALSE)),"n",VLOOKUP(A36,Feriados!A:A,1,FALSE)) -> n
A37: 44597 | B37: 25 | C37: =IF(E37<>"n",COUNTIF(B37:$B$4018,B37),IF(D37<6,0,COUNTIF(B37:$B$4018,B37))) -> 2 | D37: 6 | E37: =IF(ISERROR(VLOOKUP(A37,Feriados!A:A,1,FALSE)),"n",VLOOKUP(A37,Feriados!A:A,1,FALSE)) -> n
A38: 44598 | B38: 25 | C38: =IF(E38<>"n",COUNTIF(B38:$B$4018,B38),IF(D38<6,0,COUNTIF(B38:$B$4018,B38))) -> 1 | D38: 7 | E38: =IF(ISERROR(VLOOKUP(A38,Feriados!A:A,1,FALSE)),"n",VLOOKUP(A38,Feriados!A:A,1,FALSE)) -> n
A39: 44599 | B39: 26 | C39: =IF(E39<>"n",COUNTIF(B39:$B$4018,B39),IF(D39<6,0,COUNTIF(B39:$B$4018,B39))) -> 0 | D39: 1 | E39: =IF(ISERROR(VLOOKUP(A39,Feriados!A:A,1,FALSE)),"n",VLOOKUP(A39,Feriados!A:A,1,FALSE)) -> n
A40: 44600 | B40: 27 | C40: =IF(E40<>"n",COUNTIF(B40:$B$4018,B40),IF(D40<6,0,COUNTIF(B40:$B$4018,B40))) -> 0 | D40: 2 | E40: =IF(ISERROR(VLOOKUP(A40,Feriados!A:A,1,FALSE)),"n",VLOOKUP(A40,Feriados!A:A,1,FALSE)) -> n
A41: 44601 | B41: 28 | C41: =IF(E41<>"n",COUNTIF(B41:$B$4018,B41),IF(D41<6,0,COUNTIF(B41:$B$4018,B41))) -> 0 | D41: 3 | E41: =IF(ISERROR(VLOOKUP(A41,Feriados!A:A,1,FALSE)),"n",VLOOKUP(A41,Feriados!A:A,1,FALSE)) -> n
A42: 44602 | B42: 29 | C42: =IF(E42<>"n",COUNTIF(B42:$B$4018,B42),IF(D42<6,0,COUNTIF(B42:$B$4018,B42))) -> 0 | D42: 4 | E42: =IF(ISERROR(VLOOKUP(A42,Feriados!A:A,1,FALSE)),"n",VLOOKUP(A42,Feriados!A:A,1,FALSE)) -> n
A43: 44603 | B43: 30 | C43: =IF(E43<>"n",COUNTIF(B43:$B$4018,B43),IF(D43<6,0,COUNTIF(B43:$B$4018,B43))) -> 0 | D43: 5 | E43: =IF(ISERROR(VLOOKUP(A43,Feriados!A:A,1,FALSE)),"n",VLOOKUP(A43,Feriados!A:A,1,FALSE)) -> n
A44: 44604 | B44: 30 | C44: =IF(E44<>"n",COUNTIF(B44:$B$4018,B44),IF(D44<6,0,COUNTIF(B44:$B$4018,B44))) -> 2 | D44: 6 | E44: =IF(ISERROR(VLOOKUP(A44,Feriados!A:A,1,FALSE)),"n",VLOOKUP(A44,Feriados!A:A,1,FALSE)) -> n
A45: 44605 | B45: 30 | C45: =IF(E45<>"n",COUNTIF(B45:$B$4018,B45),IF(D45<6,0,COUNTIF(B45:$B$4018,B45))) -> 1 | D45: 7 | E45: =IF(ISERROR(VLOOKUP(A45,Feriados!A:A,1,FALSE)),"n",VLOOKUP(A45,Feriados!A:A,1,FALSE)) -> n
A46: 44606 | B46: 31 | C46: =IF(E46<>"n",COUNTIF(B46:$B$4018,B46),IF(D46<6,0,COUNTIF(B46:$B$4018,B46))) -> 0 | D46: 1 | E46: =IF(ISERROR(VLOOKUP(A46,Feriados!A:A,1,FALSE)),"n",VLOOKUP(A46,Feriados!A:A,1,FALSE)) -> n
A47: 44607 | B47: 32 | C47: =IF(E47<>"n",COUNTIF(B47:$B$4018,B47),IF(D47<6,0,COUNTIF(B47:$B$4018,B47))) -> 0 | D47: 2 | E47: =IF(ISERROR(VLOOKUP(A47,Feriados!A:A,1,FALSE)),"n",VLOOKUP(A47,Feriados!A:A,1,FALSE)) -> n
A48: 44608 | B48: 33 | C48: =IF(E48<>"n",COUNTIF(B48:$B$4018,B48),IF(D48<6,0,COUNTIF(B48:$B$4018,B48))) -> 0 | D48: 3 | E48: =IF(ISERROR(VLOOKUP(A48,Feriados!A:A,1,FALSE)),"n",VLOOKUP(A48,Feriados!A:A,1,FALSE)) -> n
A49: 44609 | B49: 34 | C49: =IF(E49<>"n",COUNTIF(B49:$B$4018,B49),IF(D49<6,0,COUNTIF(B49:$B$4018,B49))) -> 0 | D49: 4 | E49: =IF(ISERROR(VLOOKUP(A49,Feriados!A:A,1,FALSE)),"n",VLOOKUP(A49,Feriados!A:A,1,FALSE)) -> n
A50: 44610 | B50: 35 | C50: =IF(E50<>"n",COUNTIF(B50:$B$4018,B50),IF(D50<6,0,COUNTIF(B50:$B$4018,B50))) -> 0 | D50: 5 | E50: =IF(ISERROR(VLOOKUP(A50,Feriados!A:A,1,FALSE)),"n",VLOOKUP(A50,Feriados!A:A,1,FALSE)) -> n
A51: 44611 | B51: 35 | C51: =IF(E51<>"n",COUNTIF(B51:$B$4018,B51),IF(D51<6,0,COUNTIF(B51:$B$4018,B51))) -> 2 | D51: 6 | E51: =IF(ISERROR(VLOOKUP(A51,Feriados!A:A,1,FALSE)),"n",VLOOKUP(A51,Feriados!A:A,1,FALSE)) -> n
A52: 44612 | B52: 35 | C52: =IF(E52<>"n",COUNTIF(B52:$B$4018,B52),IF(D52<6,0,COUNTIF(B52:$B$4018,B52))) -> 1 | D52: 7 | E52: =IF(ISERROR(VLOOKUP(A52,Feriados!A:A,1,FALSE)),"n",VLOOKUP(A52,Feriados!A:A,1,FALSE)) -> n
A53: 44613 | B53: 36 | C53: =IF(E53<>"n",COUNTIF(B53:$B$4018,B53),IF(D53<6,0,COUNTIF(B53:$B$4018,B53))) -> 0 | D53: 1 | E53: =IF(ISERROR(VLOOKUP(A53,Feriados!A:A,1,FALSE)),"n",VLOOKUP(A53,Feriados!A:A,1,FALSE)) -> n
A54: 44614 | B54: 37 | C54: =IF(E54<>"n",COUNTIF(B54:$B$4018,B54),IF(D54<6,0,COUNTIF(B54:$B$4018,B54))) -> 0 | D54: 2 | E54: =IF(ISERROR(VLOOKUP(A54,Feriados!A:A,1,FALSE)),"n",VLOOKUP(A54,Feriados!A:A,1,FALSE)) -> n
A55: 44615 | B55: 38 | C55: =IF(E55<>"n",COUNTIF(B55:$B$4018,B55),IF(D55<6,0,COUNTIF(B55:$B$4018,B55))) -> 0 | D55: 3 | E55: =IF(ISERROR(VLOOKUP(A55,Feriados!A:A,1,FALSE)),"n",VLOOKUP(A55,Feriados!A:A,1,FALSE)) -> n
A56: 44616 | B56: 39 | C56: =IF(E56<>"n",COUNTIF(B56:$B$4018,B56),IF(D56<6,0,COUNTIF(B56:$B$4018,B56))) -> 0 | D56: 4 | E56: =IF(ISERROR(VLOOKUP(A56,Feriados!A:A,1,FALSE)),"n",VLOOKUP(A56,Feriados!A:A,1,FALSE)) -> n
A57: 44617 | B57: 40 | C57: =IF(E57<>"n",COUNTIF(B57:$B$4018,B57),IF(D57<6,0,COUNTIF(B57:$B$4018,B57))) -> 0 | D57: 5 | E57: =IF(ISERROR(VLOOKUP(A57,Feriados!A:A,1,FALSE)),"n",VLOOKUP(A57,Feriados!A:A,1,FALSE)) -> n
A58: 44618 | B58: 40 | C58: =IF(E58<>"n",COUNTIF(B58:$B$4018,B58),IF(D58<6,0,COUNTIF(B58:$B$4018,B58))) -> 4 | D58: 6 | E58: =IF(ISERROR(VLOOKUP(A58,Feriados!A:A,1,FALSE)),"n",VLOOKUP(A58,Feriados!A:A,1,FALSE)) -> n
A59: 44619 | B59: 40 | C59: =IF(E59<>"n",COUNTIF(B59:$B$4018,B59),IF(D59<6,0,COUNTIF(B59:$B$4018,B59))) -> 3 | D59: 7 | E59: =IF(ISERROR(VLOOKUP(A59,Feriados!A:A,1,FALSE)),"n",VLOOKUP(A59,Feriados!A:A,1,FALSE)) -> n
A60: 44620 | B60: 40 | C60: =IF(E60<>"n",COUNTIF(B60:$B$4018,B60),IF(D60<6,0,COUNTIF(B60:$B$4018,B60))) -> 2 | D60: 1 | E60: =IF(ISERROR(VLOOKUP(A60,Feriados!A:A,1,FALSE)),"n",VLOOKUP(A60,Feriados!A:A,1,FALSE)) -> 2022-02-28
A61: 44621 | B61: 40 | C61: =IF(E61<>"n",COUNTIF(B61:$B$4018,B61),IF(D61<6,0,COUNTIF(B61:$B$4018,B61))) -> 1 | D61: 2 | E61: =IF(ISERROR(VLOOKUP(A61,Feriados!A:A,1,FALSE)),"n",VLOOKUP(A61,Feriados!A:A,1,FALSE)) -> 2022-03-01
A62: 44622 | B62: 41 | C62: =IF(E62<>"n",COUNTIF(B62:$B$4018,B62),IF(D62<6,0,COUNTIF(B62:$B$4018,B62))) -> 0 | D62: 3 | E62: =IF(ISERROR(VLOOKUP(A62,Feriados!A:A,1,FALSE)),"n",VLOOKUP(A62,Feriados!A:A,1,FALSE)) -> n
A63: 44623 | B63: 42 | C63: =IF(E63<>"n",COUNTIF(B63:$B$4018,B63),IF(D63<6,0,COUNTIF(B63:$B$4018,B63))) -> 0 | D63: 4 | E63: =IF(ISERROR(VLOOKUP(A63,Feriados!A:A,1,FALSE)),"n",VLOOKUP(A63,Feriados!A:A,1,FALSE)) -> n
A64: 44624 | B64: 43 | C64: =IF(E64<>"n",COUNTIF(B64:$B$4018,B64),IF(D64<6,0,COUNTIF(B64:$B$4018,B64))) -> 0 | D64: 5 | E64: =IF(ISERROR(VLOOKUP(A64,Feriados!A:A,1,FALSE)),"n",VLOOKUP(A64,Feriados!A:A,1,FALSE)) -> n
A65: 44625 | B65: 43 | C65: =IF(E65<>"n",COUNTIF(B65:$B$4018,B65),IF(D65<6,0,COUNTIF(B65:$B$4018,B65))) -> 2 | D65: 6 | E65: =IF(ISERROR(VLOOKUP(A65,Feriados!A:A,1,FALSE)),"n",VLOOKUP(A65,Feriados!A:A,1,FALSE)) -> n
A66: 44626 | B66: 43 | C66: =IF(E66<>"n",COUNTIF(B66:$B$4018,B66),IF(D66<6,0,COUNTIF(B66:$B$4018,B66))) -> 1 | D66: 7 | E66: =IF(ISERROR(VLOOKUP(A66,Feriados!A:A,1,FALSE)),"n",VLOOKUP(A66,Feriados!A:A,1,FALSE)) -> n
A67: 44627 | B67: =NETWORKDAYS($A$2,A67,feriados) -> 44 | C67: =IF(E67<>"n",COUNTIF(B67:$B$4018,B67),IF(D67<6,0,COUNTIF(B67:$B$4018,B67))) -> 0 | D67: =WEEKDAY(A67,2) -> 1 | E67: =IF(ISERROR(VLOOKUP(A67,Feriados!A:A,1,FALSE)),"n",VLOOKUP(A67,Feriados!A:A,1,FALSE)) -> n
A68: =A67+1 -> 44628 | B68: 45 | C68: =IF(E68<>"n",COUNTIF(B68:$B$4018,B68),IF(D68<6,0,COUNTIF(B68:$B$4018,B68))) -> 0 | D68: 2 | E68: =IF(ISERROR(VLOOKUP(A68,Feriados!A:A,1,FALSE)),"n",VLOOKUP(A68,Feriados!A:A,1,FALSE)) -> n
A69: 44629 | B69: 46 | C69: =IF(E69<>"n",COUNTIF(B69:$B$4018,B69),IF(D69<6,0,COUNTIF(B69:$B$4018,B69))) -> 0 | D69: 3 | E69: =IF(ISERROR(VLOOKUP(A69,Feriados!A:A,1,FALSE)),"n",VLOOKUP(A69,Feriados!A:A,1,FALSE)) -> n
A70: 44630 | B70: 47 | C70: =IF(E70<>"n",COUNTIF(B70:$B$4018,B70),IF(D70<6,0,COUNTIF(B70:$B$4018,B70))) -> 0 | D70: 4 | E70: =IF(ISERROR(VLOOKUP(A70,Feriados!A:A,1,FALSE)),"n",VLOOKUP(A70,Feriados!A:A,1,FALSE)) -> n
A71: 44631 | B71: 48 | C71: =IF(E71<>"n",COUNTIF(B71:$B$4018,B71),IF(D71<6,0,COUNTIF(B71:$B$4018,B71))) -> 0 | D71: 5 | E71: =IF(ISERROR(VLOOKUP(A71,Feriados!A:A,1,FALSE)),"n",VLOOKUP(A71,Feriados!A:A,1,FALSE)) -> n
A72: 44632 | B72: 48 | C72: =IF(E72<>"n",COUNTIF(B72:$B$4018,B72),IF(D72<6,0,COUNTIF(B72:$B$4018,B72))) -> 2 | D72: 6 | E72: =IF(ISERROR(VLOOKUP(A72,Feriados!A:A,1,FALSE)),"n",VLOOKUP(A72,Feriados!A:A,1,FALSE)) -> n
A73: 44633 | B73: 48 | C73: =IF(E73<>"n",COUNTIF(B73:$B$4018,B73),IF(D73<6,0,COUNTIF(B73:$B$4018,B73))) -> 1 | D73: 7 | E73: =IF(ISERROR(VLOOKUP(A73,Feriados!A:A,1,FALSE)),"n",VLOOKUP(A73,Feriados!A:A,1,FALSE)) -> n
A74: 44634 | B74: 49 | C74: =IF(E74<>"n",COUNTIF(B74:$B$4018,B74),IF(D74<6,0,COUNTIF(B74:$B$4018,B74))) -> 0 | D74: 1 | E74: =IF(ISERROR(VLOOKUP(A74,Feriados!A:A,1,FALSE)),"n",VLOOKUP(A74,Feriados!A:A,1,FALSE)) -> n
A75: 44635 | B75: 50 | C75: =IF(E75<>"n",COUNTIF(B75:$B$4018,B75),IF(D75<6,0,COUNTIF(B75:$B$4018,B75))) -> 0 | D75: 2 | E75: =IF(ISERROR(VLOOKUP(A75,Feriados!A:A,1,FALSE)),"n",VLOOKUP(A75,Feriados!A:A,1,FALSE)) -> n
A76: 44636 | B76: 51 | C76: =IF(E76<>"n",COUNTIF(B76:$B$4018,B76),IF(D76<6,0,COUNTIF(B76:$B$4018,B76))) -> 0 | D76: 3 | E76: =IF(ISERROR(VLOOKUP(A76,Feriados!A:A,1,FALSE)),"n",VLOOKUP(A76,Feriados!A:A,1,FALSE)) -> n
A77: 44637 | B77: 52 | C77: =IF(E77<>"n",COUNTIF(B77:$B$4018,B77),IF(D77<6,0,COUNTIF(B77:$B$4018,B77))) -> 0 | D77: 4 | E77: =IF(ISERROR(VLOOKUP(A77,Feriados!A:A,1,FALSE)),"n",VLOOKUP(A77,Feriados!A:A,1,FALSE)) -> n
A78: 44638 | B78: 53 | C78: =IF(E78<>"n",COUNTIF(B78:$B$4018,B78),IF(D78<6,0,COUNTIF(B78:$B$4018,B78))) -> 0 | D78: 5 | E78: =IF(ISERROR(VLOOKUP(A78,Feriados!A:A,1,FALSE)),"n",VLOOKUP(A78,Feriados!A:A,1,FALSE)) -> n
A79: 44639 | B79: 53 | C79: =IF(E79<>"n",COUNTIF(B79:$B$4018,B79),IF(D79<6,0,COUNTIF(B79:$B$4018,B79))) -> 2 | D79: 6 | E79: =IF(ISERROR(VLOOKUP(A79,Feriados!A:A,1,FALSE)),"n",VLOOKUP(A79,Feriados!A:A,1,FALSE)) -> n
A80: 44640 | B80: 53 | C80: =IF(E80<>"n",COUNTIF(B80:$B$4018,B80),IF(D80<6,0,COUNTIF(B80:$B$4018,B80))) -> 1 | D80: 7 | E80: =IF(ISERROR(VLOOKUP(A80,Feriados!A:A,1,FALSE)),"n",VLOOKUP(A80,Feriados!A:A,1,FALSE)) -> n
A81: 44641 | B81: 54 | C81: =IF(E81<>"n",COUNTIF(B81:$B$4018,B81),IF(D81<6,0,COUNTIF(B81:$B$4018,B81))) -> 0 | D81: 1 | E81: =IF(ISERROR(VLOOKUP(A81,Feriados!A:A,1,FALSE)),"n",VLOOKUP(A81,Feriados!A:A,1,FALSE)) -> n
A82: 44642 | B82: 55 | C82: =IF(E82<>"n",COUNTIF(B82:$B$4018,B82),IF(D82<6,0,COUNTIF(B82:$B$4018,B82))) -> 0 | D82: 2 | E82: =IF(ISERROR(VLOOKUP(A82,Feriados!A:A,1,FALSE)),"n",VLOOKUP(A82,Feriados!A:A,1,FALSE)) -> n
A83: 44643 | B83: 56 | C83: =IF(E83<>"n",COUNTIF(B83:$B$4018,B83),IF(D83<6,0,COUNTIF(B83:$B$4018,B83))) -> 0 | D83: 3 | E83: =IF(ISERROR(VLOOKUP(A83,Feriados!A:A,1,FALSE)),"n",VLOOKUP(A83,Feriados!A:A,1,FALSE)) -> n
A84: 44644 | B84: 57 | C84: =IF(E84<>"n",COUNTIF(B84:$B$4018,B84),IF(D84<6,0,COUNTIF(B84:$B$4018,B84))) -> 0 | D84: 4 | E84: =IF(ISERROR(VLOOKUP(A84,Feriados!A:A,1,FALSE)),"n",VLOOKUP(A84,Feriados!A:A,1,FALSE)) -> n
A85: 44645 | B85: 58 | C85: =IF(E85<>"n",COUNTIF(B85:$B$4018,B85),IF(D85<6,0,COUNTIF(B85:$B$4018,B85))) -> 0 | D85: 5 | E85: =IF(ISERROR(VLOOKUP(A85,Feriados!A:A,1,FALSE)),"n",VLOOKUP(A85,Feriados!A:A,1,FALSE)) -> n
A86: 44646 | B86: 58 | C86: =IF(E86<>"n",COUNTIF(B86:$B$4018,B86),IF(D86<6,0,COUNTIF(B86:$B$4018,B86))) -> 2 | D86: 6 | E86: =IF(ISERROR(VLOOKUP(A86,Feriados!A:A,1,FALSE)),"n",VLOOKUP(A86,Feriados!A:A,1,FALSE)) -> n
A87: 44647 | B87: 58 | C87: =IF(E87<>"n",COUNTIF(B87:$B$4018,B87),IF(D87<6,0,COUNTIF(B87:$B$4018,B87))) -> 1 | D87: 7 | E87: =IF(ISERROR(VLOOKUP(A87,Feriados!A:A,1,FALSE)),"n",VLOOKUP(A87,Feriados!A:A,1,FALSE)) -> n
A88: 44648 | B88: 59 | C88: =IF(E88<>"n",COUNTIF(B88:$B$4018,B88),IF(D88<6,0,COUNTIF(B88:$B$4018,B88))) -> 0 | D88: 1 | E88: =IF(ISERROR(VLOOKUP(A88,Feriados!A:A,1,FALSE)),"n",VLOOKUP(A88,Feriados!A:A,1,FALSE)) -> n
A89: 44649 | B89: 60 | C89: =IF(E89<>"n",COUNTIF(B89:$B$4018,B89),IF(D89<6,0,COUNTIF(B89:$B$4018,B89))) -> 0 | D89: 2 | E89: =IF(ISERROR(VLOOKUP(A89,Feriados!A:A,1,FALSE)),"n",VLOOKUP(A89,Feriados!A:A,1,FALSE)) -> n
A90: 44650 | B90: 61 | C90: =IF(E90<>"n",COUNTIF(B90:$B$4018,B90),IF(D90<6,0,COUNTIF(B90:$B$4018,B90))) -> 0 | D90: 3 | E90: =IF(ISERROR(VLOOKUP(A90,Feriados!A:A,1,FALSE)),"n",VLOOKUP(A90,Feriados!A:A,1,FALSE)) -> n
A91: 44651 | B91: 62 | C91: =IF(E91<>"n",COUNTIF(B91:$B$4018,B91),IF(D91<6,0,COUNTIF(B91:$B$4018,B91))) -> 0 | D91: 4 | E91: =IF(ISERROR(VLOOKUP(A91,Feriados!A:A,1,FALSE)),"n",VLOOKUP(A91,Feriados!A:A,1,FALSE)) -> n
A92: 44652 | B92: 63 | C92: =IF(E92<>"n",COUNTIF(B92:$B$4018,B92),IF(D92<6,0,COUNTIF(B92:$B$4018,B92))) -> 0 | D92: 5 | E92: =IF(ISERROR(VLOOKUP(A92,Feriados!A:A,1,FALSE)),"n",VLOOKUP(A92,Feriados!A:A,1,FALSE)) -> n
A93: 44653 | B93: 63 | C93: =IF(E93<>"n",COUNTIF(B93:$B$4018,B93),IF(D93<6,0,COUNTIF(B93:$B$4018,B93))) -> 2 | D93: 6 | E93: =IF(ISERROR(VLOOKUP(A93,Feriados!A:A,1,FALSE)),"n",VLOOKUP(A93,Feriados!A:A,1,FALSE)) -> n
A94: 44654 | B94: 63 | C94: =IF(E94<>"n",COUNTIF(B94:$B$4018,B94),IF(D94<6,0,COUNTIF(B94:$B$4018,B94))) -> 1 | D94: 7 | E94: =IF(ISERROR(VLOOKUP(A94,Feriados!A:A,1,FALSE)),"n",VLOOKUP(A94,Feriados!A:A,1,FALSE)) -> n
A95: 44655 | B95: 64 | C95: =IF(E95<>"n",COUNTIF(B95:$B$4018,B95),IF(D95<6,0,COUNTIF(B95:$B$4018,B95))) -> 0 | D95: 1 | E95: =IF(ISERROR(VLOOKUP(A95,Feriados!A:A,1,FALSE)),"n",VLOOKUP(A95,Feriados!A:A,1,FALSE)) -> n
A96: 44656 | B96: 65 | C96: =IF(E96<>"n",COUNTIF(B96:$B$4018,B96),IF(D96<6,0,COUNTIF(B96:$B$4018,B96))) -> 0 | D96: 2 | E96: =IF(ISERROR(VLOOKUP(A96,Feriados!A:A,1,FALSE)),"n",VLOOKUP(A96,Feriados!A:A,1,FALSE)) -> n
A97: 44657 | B97: 66 | C97: =IF(E97<>"n",COUNTIF(B97:$B$4018,B97),IF(D97<6,0,COUNTIF(B97:$B$4018,B97))) -> 0 | D97: 3 | E97: =IF(ISERROR(VLOOKUP(A97,Feriados!A:A,1,FALSE)),"n",VLOOKUP(A97,Feriados!A:A,1,FALSE)) -> n
A98: 44658 | B98: 67 | C98: =IF(E98<>"n",COUNTIF(B98:$B$4018,B98),IF(D98<6,0,COUNTIF(B98:$B$4018,B98))) -> 0 | D98: 4 | E98: =IF(ISERROR(VLOOKUP(A98,Feriados!A:A,1,FALSE)),"n",VLOOKUP(A98,Feriados!A:A,1,FALSE)) -> n
A99: 44659 | B99: 68 | C99: =IF(E99<>"n",COUNTIF(B99:$B$4018,B99),IF(D99<6,0,COUNTIF(B99:$B$4018,B99))) -> 0 | D99: 5 | E99: =IF(ISERROR(VLOOKUP(A99,Feriados!A:A,1,FALSE)),"n",VLOOKUP(A99,Feriados!A:A,1,FALSE)) -> n
A100: 44660 | B100: 68 | C100: =IF(E100<>"n",COUNTIF(B100:$B$4018,B100),IF(D100<6,0,COUNTIF(B100:$B$4018,B100))) -> 2 | D100: 6 | E100: =IF(ISERROR(VLOOKUP(A100,Feriados!A:A,1,FALSE)),"n",VLOOKUP(A100,Feriados!A:A,1,FALSE)) -> n
A101: 44661 | B101: 68 | C101: =IF(E101<>"n",COUNTIF(B101:$B$4018,B101),IF(D101<6,0,COUNTIF(B101:$B$4018,B101))) -> 1 | D101: 7 | E101: =IF(ISERROR(VLOOKUP(A101,Feriados!A:A,1,FALSE)),"n",VLOOKUP(A101,Feriados!A:A,1,FALSE)) -> n
A102: 44662 | B102: 69 | C102: =IF(E102<>"n",COUNTIF(B102:$B$4018,B102),IF(D102<6,0,COUNTIF(B102:$B$4018,B102))) -> 0 | D102: 1 | E102: =IF(ISERROR(VLOOKUP(A102,Feriados!A:A,1,FALSE)),"n",VLOOKUP(A102,Feriados!A:A,1,FALSE)) -> n
A103: 44663 | B103: 70 | C103: =IF(E103<>"n",COUNTIF(B103:$B$4018,B103),IF(D103<6,0,COUNTIF(B103:$B$4018,B103))) -> 0 | D103: 2 | E103: =IF(ISERROR(VLOOKUP(A103,Feriados!A:A,1,FALSE)),"n",VLOOKUP(A103,Feriados!A:A,1,FALSE)) -> n
A104: 44664 | B104: 71 | C104: =IF(E104<>"n",COUNTIF(B104:$B$4018,B104),IF(D104<6,0,COUNTIF(B104:$B$4018,B104))) -> 0 | D104: 3 | E104: =IF(ISERROR(VLOOKUP(A104,Feriados!A:A,1,FALSE)),"n",VLOOKUP(A104,Feriados!A:A,1,FALSE)) -> n
A105: 44665 | B105: 72 | C105: =IF(E105<>"n",COUNTIF(B105:$B$4018,B105),IF(D105<6,0,COUNTIF(B105:$B$4018,B105))) -> 0 | D105: 4 | E105: =IF(ISERROR(VLOOKUP(A105,Feriados!A:A,1,FALSE)),"n",VLOOKUP(A105,Feriados!A:A,1,FALSE)) -> n
A106: 44666 | B106: 72 | C106: =IF(E106<>"n",COUNTIF(B106:$B$4018,B106),IF(D106<6,0,COUNTIF(B106:$B$4018,B106))) -> 3 | D106: 5 | E106: =IF(ISERROR(VLOOKUP(A106,Feriados!A:A,1,FALSE)),"n",VLOOKUP(A106,Feriados!A:A,1,FALSE)) -> 2022-04-15
A107: 44667 | B107: 72 | C107: =IF(E107<>"n",COUNTIF(B107:$B$4018,B107),IF(D107<6,0,COUNTIF(B107:$B$4018,B107))) -> 2 | D107: 6 | E107: =IF(ISERROR(VLOOKUP(A107,Feriados!A:A,1,FALSE)),"n",VLOOKUP(A107,Feriados!A:A,1,FALSE)) -> n
A108: 44668 | B108: 72 | C108: =IF(E108<>"n",COUNTIF(B108:$B$4018,B108),IF(D108<6,0,COUNTIF(B108:$B$4018,B108))) -> 1 | D108: 7 | E108: =IF(ISERROR(VLOOKUP(A108,Feriados!A:A,1,FALSE)),"n",VLOOKUP(A108,Feriados!A:A,1,FALSE)) -> n
A109: 44669 | B109: 73 | C109: =IF(E109<>"n",COUNTIF(B109:$B$4018,B109),IF(D109<6,0,COUNTIF(B109:$B$4018,B109))) -> 0 | D109: 1 | E109: =IF(ISERROR(VLOOKUP(A109,Feriados!A:A,1,FALSE)),"n",VLOOKUP(A109,Feriados!A:A,1,FALSE)) -> n
A110: 44670 | B110: 74 | C110: =IF(E110<>"n",COUNTIF(B110:$B$4018,B110),IF(D110<6,0,COUNTIF(B110:$B$4018,B110))) -> 0 | D110: 2 | E110: =IF(ISERROR(VLOOKUP(A110,Feriados!A:A,1,FALSE)),"n",VLOOKUP(A110,Feriados!A:A,1,FALSE)) -> n
A111: 44671 | B111: 75 | C111: =IF(E111<>"n",COUNTIF(B111:$B$4018,B111),IF(D111<6,0,COUNTIF(B111:$B$4018,B111))) -> 0 | D111: 3 | E111: =IF(ISERROR(VLOOKUP(A111,Feriados!A:A,1,FALSE)),"n",VLOOKUP(A111,Feriados!A:A,1,FALSE)) -> n
A112: 44672 | B112: 75 | C112: =IF(E112<>"n",COUNTIF(B112:$B$4018,B112),IF(D112<6,0,COUNTIF(B112:$B$4018,B112))) -> 1 | D112: 4 | E112: =IF(ISERROR(VLOOKUP(A112,Feriados!A:A,1,FALSE)),"n",VLOOKUP(A112,Feriados!A:A,1,FALSE)) -> 2022-04-21
A113: 44673 | B113: 76 | C113: =IF(E113<>"n",COUNTIF(B113:$B$4018,B113),IF(D113<6,0,COUNTIF(B113:$B$4018,B113))) -> 0 | D113: 5 | E113: =IF(ISERROR(VLOOKUP(A113,Feriados!A:A,1,FALSE)),"n",VLOOKUP(A113,Feriados!A:A,1,FALSE)) -> n
A114: 44674 | B114: 76 | C114: =IF(E114<>"n",COUNTIF(B114:$B$4018,B114),IF(D114<6,0,COUNTIF(B114:$B$4018,B114))) -> 2 | D114: 6 | E114: =IF(ISERROR(VLOOKUP(A114,Feriados!A:A,1,FALSE)),"n",VLOOKUP(A114,Feriados!A:A,1,FALSE)) -> n
A115: 44675 | B115: 76 | C115: =IF(E115<>"n",COUNTIF(B115:$B$4018,B115),IF(D115<6,0,COUNTIF(B115:$B$4018,B115))) -> 1 | D115: 7 | E115: =IF(ISERROR(VLOOKUP(A115,Feriados!A:A,1,FALSE)),"n",VLOOKUP(A115,Feriados!A:A,1,FALSE)) -> n
A116: 44676 | B116: 77 | C116: =IF(E116<>"n",COUNTIF(B116:$B$4018,B116),IF(D116<6,0,COUNTIF(B116:$B$4018,B116))) -> 0 | D116: 1 | E116: =IF(ISERROR(VLOOKUP(A116,Feriados!A:A,1,FALSE)),"n",VLOOKUP(A116,Feriados!A:A,1,FALSE)) -> n
A117: 44677 | B117: 78 | C117: =IF(E117<>"n",COUNTIF(B117:$B$4018,B117),IF(D117<6,0,COUNTIF(B117:$B$4018,B117))) -> 0 | D117: 2 | E117: =IF(ISERROR(VLOOKUP(A117,Feriados!A:A,1,FALSE)),"n",VLOOKUP(A117,Feriados!A:A,1,FALSE)) -> n
A118: 44678 | B118: 79 | C118: =IF(E118<>"n",COUNTIF(B118:$B$4018,B118),IF(D118<6,0,COUNTIF(B118:$B$4018,B118))) -> 0 | D118: 3 | E118: =IF(ISERROR(VLOOKUP(A118,Feriados!A:A,1,FALSE)),"n",VLOOKUP(A118,Feriados!A:A,1,FALSE)) -> n
A119: 44679 | B119: 80 | C119: =IF(E119<>"n",COUNTIF(B119:$B$4018,B119),IF(D119<6,0,COUNTIF(B119:$B$4018,B119))) -> 0 | D119: 4 | E119: =IF(ISERROR(VLOOKUP(A119,Feriados!A:A,1,FALSE)),"n",VLOOKUP(A119,Feriados!A:A,1,FALSE)) -> n
A120: 44680 | B120: 81 | C120: =IF(E120<>"n",COUNTIF(B120:$B$4018,B120),IF(D120<6,0,COUNTIF(B120:$B$4018,B120))) -> 0 | D120: 5 | E120: =IF(ISERROR(VLOOKUP(A120,Feriados!A:A,1,FALSE)),"n",VLOOKUP(A120,Feriados!A:A,1,FALSE)) -> n
A121: 44681 | B121: 81 | C121: =IF(E121<>"n",COUNTIF(B121:$B$4018,B121),IF(D121<6,0,COUNTIF(B121:$B$4018,B121))) -> 2 | D121: 6 | E121: =IF(ISERROR(VLOOKUP(A121,Feriados!A:A,1,FALSE)),"n",VLOOKUP(A121,Feriados!A:A,1,FALSE)) -> n
A122: 44682 | B122: 81 | C122: =IF(E122<>"n",COUNTIF(B122:$B$4018,B122),IF(D122<6,0,COUNTIF(B122:$B$4018,B122))) -> 1 | D122: 7 | E122: =IF(ISERROR(VLOOKUP(A122,Feriados!A:A,1,FALSE)),"n",VLOOKUP(A122,Feriados!A:A,1,FALSE)) -> 2022-05-01
A123: 44683 | B123: 82 | C123: =IF(E123<>"n",COUNTIF(B123:$B$4018,B123),IF(D123<6,0,COUNTIF(B123:$B$4018,B123))) -> 0 | D123: 1 | E123: =IF(ISERROR(VLOOKUP(A123,Feriados!A:A,1,FALSE)),"n",VLOOKUP(A123,Feriados!A:A,1,FALSE)) -> n
A124: 44684 | B124: 83 | C124: =IF(E124<>"n",COUNTIF(B124:$B$4018,B124),IF(D124<6,0,COUNTIF(B124:$B$4018,B124))) -> 0 | D124: 2 | E124: =IF(ISERROR(VLOOKUP(A124,Feriados!A:A,1,FALSE)),"n",VLOOKUP(A124,Feriados!A:A,1,FALSE)) -> n
A125: 44685 | B125: 84 | C125: =IF(E125<>"n",COUNTIF(B125:$B$4018,B125),IF(D125<6,0,COUNTIF(B125:$B$4018,B125))) -> 0 | D125: 3 | E125: =IF(ISERROR(VLOOKUP(A125,Feriados!A:A,1,FALSE)),"n",VLOOKUP(A125,Feriados!A:A,1,FALSE)) -> n
A126: 44686 | B126: 85 | C126: =IF(E126<>"n",COUNTIF(B126:$B$4018,B126),IF(D126<6,0,COUNTIF(B126:$B$4018,B126))) -> 0 | D126: 4 | E126: =IF(ISERROR(VLOOKUP(A126,Feriados!A:A,1,FALSE)),"n",VLOOKUP(A126,Feriados!A:A,1,FALSE)) -> n
A127: 44687 | B127: 86 | C127: =IF(E127<>"n",COUNTIF(B127:$B$4018,B127),IF(D127<6,0,COUNTIF(B127:$B$4018,B127))) -> 0 | D127: 5 | E127: =IF(ISERROR(VLOOKUP(A127,Feriados!A:A,1,FALSE)),"n",VLOOKUP(A127,Feriados!A:A,1,FALSE)) -> n
A128: 44688 | B128: 86 | C128: =IF(E128<>"n",COUNTIF(B128:$B$4018,B128),IF(D128<6,0,COUNTIF(B128:$B$4018,B128))) -> 2 | D128: 6 | E128: =IF(ISERROR(VLOOKUP(A128,Feriados!A:A,1,FALSE)),"n",VLOOKUP(A128,Feriados!A:A,1,FALSE)) -> n
A129: 44689 | B129: 86 | C129: =IF(E129<>"n",COUNTIF(B129:$B$4018,B129),IF(D129<6,0,COUNTIF(B129:$B$4018,B129))) -> 1 | D129: 7 | E129: =IF(ISERROR(VLOOKUP(A129,Feriados!A:A,1,FALSE)),"n",VLOOKUP(A129,Feriados!A:A,1,FALSE)) -> n
A130: 44690 | B130: 87 | C130: =IF(E130<>"n",COUNTIF(B130:$B$4018,B130),IF(D130<6,0,COUNTIF(B130:$B$4018,B130))) -> 0 | D130: 1 | E130: =IF(ISERROR(VLOOKUP(A130,Feriados!A:A,1,FALSE)),"n",VLOOKUP(A130,Feriados!A:A,1,FALSE)) -> n
A131: 44691 | B131: =NETWORKDAYS($A$2,A131,feriados) -> 88 | C131: =IF(E131<>"n",COUNTIF(B131:$B$4018,B131),IF(D131<6,0,COUNTIF(B131:$B$4018,B131))) -> 0 | D131: =WEEKDAY(A131,2) -> 2 | E131: =IF(ISERROR(VLOOKUP(A131,Feriados!A:A,1,FALSE)),"n",VLOOKUP(A131,Feriados!A:A,1,FALSE)) -> n
A132: =A131+1 -> 44692 | B132: 89 | C132: =IF(E132<>"n",COUNTIF(B132:$B$4018,B132),IF(D132<6,0,COUNTIF(B132:$B$4018,B132))) -> 0 | D132: 3 | E132: =IF(ISERROR(VLOOKUP(A132,Feriados!A:A,1,FALSE)),"n",VLOOKUP(A132,Feriados!A:A,1,FALSE)) -> n
A133: 44693 | B133: 90 | C133: =IF(E133<>"n",COUNTIF(B133:$B$4018,B133),IF(D133<6,0,COUNTIF(B133:$B$4018,B133))) -> 0 | D133: 4 | E133: =IF(ISERROR(VLOOKUP(A133,Feriados!A:A,1,FALSE)),"n",VLOOKUP(A133,Feriados!A:A,1,FALSE)) -> n
A134: 44694 | B134: 91 | C134: =IF(E134<>"n",COUNTIF(B134:$B$4018,B134),IF(D134<6,0,COUNTIF(B134:$B$4018,B134))) -> 0 | D134: 5 | E134: =IF(ISERROR(VLOOKUP(A134,Feriados!A:A,1,FALSE)),"n",VLOOKUP(A134,Feriados!A:A,1,FALSE)) -> n
A135: 44695 | B135: 91 | C135: =IF(E135<>"n",COUNTIF(B135:$B$4018,B135),IF(D135<6,0,COUNTIF(B135:$B$4018,B135))) -> 2 | D135: 6 | E135: =IF(ISERROR(VLOOKUP(A135,Feriados!A:A,1,FALSE)),"n",VLOOKUP(A135,Feriados!A:A,1,FALSE)) -> n
A136: 44696 | B136: 91 | C136: =IF(E136<>"n",COUNTIF(B136:$B$4018,B136),IF(D136<6,0,COUNTIF(B136:$B$4018,B136))) -> 1 | D136: 7 | E136: =IF(ISERROR(VLOOKUP(A136,Feriados!A:A,1,FALSE)),"n",VLOOKUP(A136,Feriados!A:A,1,FALSE)) -> n
A137: 44697 | B137: 92 | C137: =IF(E137<>"n",COUNTIF(B137:$B$4018,B137),IF(D137<6,0,COUNTIF(B137:$B$4018,B137))) -> 0 | D137: 1 | E137: =IF(ISERROR(VLOOKUP(A137,Feriados!A:A,1,FALSE)),"n",VLOOKUP(A137,Feriados!A:A,1,FALSE)) -> n
A138: 44698 | B138: 93 | C138: =IF(E138<>"n",COUNTIF(B138:$B$4018,B138),IF(D138<6,0,COUNTIF(B138:$B$4018,B138))) -> 0 | D138: 2 | E138: =IF(ISERROR(VLOOKUP(A138,Feriados!A:A,1,FALSE)),"n",VLOOKUP(A138,Feriados!A:A,1,FALSE)) -> n
A139: 44699 | B139: 94 | C139: =IF(E139<>"n",COUNTIF(B139:$B$4018,B139),IF(D139<6,0,COUNTIF(B139:$B$4018,B139))) -> 0 | D139: 3 | E139: =IF(ISERROR(VLOOKUP(A139,Feriados!A:A,1,FALSE)),"n",VLOOKUP(A139,Feriados!A:A,1,FALSE)) -> n
A140: 44700 | B140: 95 | C140: =IF(E140<>"n",COUNTIF(B140:$B$4018,B140),IF(D140<6,0,COUNTIF(B140:$B$4018,B140))) -> 0 | D140: 4 | E140: =IF(ISERROR(VLOOKUP(A140,Feriados!A:A,1,FALSE)),"n",VLOOKUP(A140,Feriados!A:A,1,FALSE)) -> n
A141: 44701 | B141: 96 | C141: =IF(E141<>"n",COUNTIF(B141:$B$4018,B141),IF(D141<6,0,COUNTIF(B141:$B$4018,B141))) -> 0 | D141: 5 | E141: =IF(ISERROR(VLOOKUP(A141,Feriados!A:A,1,FALSE)),"n",VLOOKUP(A141,Feriados!A:A,1,FALSE)) -> n
A142: 44702 | B142: 96 | C142: =IF(E142<>"n",COUNTIF(B142:$B$4018,B142),IF(D142<6,0,COUNTIF(B142:$B$4018,B142))) -> 2 | D142: 6 | E142: =IF(ISERROR(VLOOKUP(A142,Feriados!A:A,1,FALSE)),"n",VLOOKUP(A142,Feriados!A:A,1,FALSE)) -> n
A143: 44703 | B143: 96 | C143: =IF(E143<>"n",COUNTIF(B143:$B$4018,B143),IF(D143<6,0,COUNTIF(B143:$B$4018,B143))) -> 1 | D143: 7 | E143: =IF(ISERROR(VLOOKUP(A143,Feriados!A:A,1,FALSE)),"n",VLOOKUP(A143,Feriados!A:A,1,FALSE)) -> n
A144: 44704 | B144: 97 | C144: =IF(E144<>"n",COUNTIF(B144:$B$4018,B144),IF(D144<6,0,COUNTIF(B144:$B$4018,B144))) -> 0 | D144: 1 | E144: =IF(ISERROR(VLOOKUP(A144,Feriados!A:A,1,FALSE)),"n",VLOOKUP(A144,Feriados!A:A,1,FALSE)) -> n
A145: 44705 | B145: 98 | C145: =IF(E145<>"n",COUNTIF(B145:$B$4018,B145),IF(D145<6,0,COUNTIF(B145:$B$4018,B145))) -> 0 | D145: 2 | E145: =IF(ISERROR(VLOOKUP(A145,Feriados!A:A,1,FALSE)),"n",VLOOKUP(A145,Feriados!A:A,1,FALSE)) -> n
A146: 44706 | B146: 99 | C146: =IF(E146<>"n",COUNTIF(B146:$B$4018,B146),IF(D146<6,0,COUNTIF(B146:$B$4018,B146))) -> 0 | D146: 3 | E146: =IF(ISERROR(VLOOKUP(A146,Feriados!A:A,1,FALSE)),"n",VLOOKUP(A146,Feriados!A:A,1,FALSE)) -> n
A147: 44707 | B147: 100 | C147: =IF(E147<>"n",COUNTIF(B147:$B$4018,B147),IF(D147<6,0,COUNTIF(B147:$B$4018,B147))) -> 0 | D147: 4 | E147: =IF(ISERROR(VLOOKUP(A147,Feriados!A:A,1,FALSE)),"n",VLOOKUP(A147,Feriados!A:A,1,FALSE)) -> n
A148: 44708 | B148: 101 | C148: =IF(E148<>"n",COUNTIF(B148:$B$4018,B148),IF(D148<6,0,COUNTIF(B148:$B$4018,B148))) -> 0 | D148: 5 | E148: =IF(ISERROR(VLOOKUP(A148,Feriados!A:A,1,FALSE)),"n",VLOOKUP(A148,Feriados!A:A,1,FALSE)) -> n
A149: 44709 | B149: 101 | C149: =IF(E149<>"n",COUNTIF(B149:$B$4018,B149),IF(D149<6,0,COUNTIF(B149:$B$4018,B149))) -> 2 | D149: 6 | E149: =IF(ISERROR(VLOOKUP(A149,Feriados!A:A,1,FALSE)),"n",VLOOKUP(A149,Feriados!A:A,1,FALSE)) -> n
A150: 44710 | B150: 101 | C150: =IF(E150<>"n",COUNTIF(B150:$B$4018,B150),IF(D150<6,0,COUNTIF(B150:$B$4018,B150))) -> 1 | D150: 7 | E150: =IF(ISERROR(VLOOKUP(A150,Feriados!A:A,1,FALSE)),"n",VLOOKUP(A150,Feriados!A:A,1,FALSE)) -> n
A151: 44711 | B151: 102 | C151: =IF(E151<>"n",COUNTIF(B151:$B$4018,B151),IF(D151<6,0,COUNTIF(B151:$B$4018,B151))) -> 0 | D151: 1 | E151: =IF(ISERROR(VLOOKUP(A151,Feriados!A:A,1,FALSE)),"n",VLOOKUP(A151,Feriados!A:A,1,FALSE)) -> n
A152: 44712 | B152: 103 | C152: =IF(E152<>"n",COUNTIF(B152:$B$4018,B152),IF(D152<6,0,COUNTIF(B152:$B$4018,B152))) -> 0 | D152: 2 | E152: =IF(ISERROR(VLOOKUP(A152,Feriados!A:A,1,FALSE)),"n",VLOOKUP(A152,Feriados!A:A,1,FALSE)) -> n
A153: 44713 | B153: 104 | C153: =IF(E153<>"n",COUNTIF(B153:$B$4018,B153),IF(D153<6,0,COUNTIF(B153:$B$4018,B153))) -> 0 | D153: 3 | E153: =IF(ISERROR(VLOOKUP(A153,Feriados!A:A,1,FALSE)),"n",VLOOKUP(A153,Feriados!A:A,1,FALSE)) -> n
A154: 44714 | B154: 105 | C154: =IF(E154<>"n",COUNTIF(B154:$B$4018,B154),IF(D154<6,0,COUNTIF(B154:$B$4018,B154))) -> 0 | D154: 4 | E154: =IF(ISERROR(VLOOKUP(A154,Feriados!A:A,1,FALSE)),"n",VLOOKUP(A154,Feriados!A:A,1,FALSE)) -> n
A155: 44715 | B155: 106 | C155: =IF(E155<>"n",COUNTIF(B155:$B$4018,B155),IF(D155<6,0,COUNTIF(B155:$B$4018,B155))) -> 0 | D155: 5 | E155: =IF(ISERROR(VLOOKUP(A155,Feriados!A:A,1,FALSE)),"n",VLOOKUP(A155,Feriados!A:A,1,FALSE)) -> n
A156: 44716 | B156: 106 | C156: =IF(E156<>"n",COUNTIF(B156:$B$4018,B156),IF(D156<6,0,COUNTIF(B156:$B$4018,B156))) -> 2 | D156: 6 | E156: =IF(ISERROR(VLOOKUP(A156,Feriados!A:A,1,FALSE)),"n",VLOOKUP(A156,Feriados!A:A,1,FALSE)) -> n
A157: 44717 | B157: 106 | C157: =IF(E157<>"n",COUNTIF(B157:$B$4018,B157),IF(D157<6,0,COUNTIF(B157:$B$4018,B157))) -> 1 | D157: 7 | E157: =IF(ISERROR(VLOOKUP(A157,Feriados!A:A,1,FALSE)),"n",VLOOKUP(A157,Feriados!A:A,1,FALSE)) -> n
A158: 44718 | B158: 107 | C158: =IF(E158<>"n",COUNTIF(B158:$B$4018,B158),IF(D158<6,0,COUNTIF(B158:$B$4018,B158))) -> 0 | D158: 1 | E158: =IF(ISERROR(VLOOKUP(A158,Feriados!A:A,1,FALSE)),"n",VLOOKUP(A158,Feriados!A:A,1,FALSE)) -> n
A159: 44719 | B159: 108 | C159: =IF(E159<>"n",COUNTIF(B159:$B$4018,B159),IF(D159<6,0,COUNTIF(B159:$B$4018,B159))) -> 0 | D159: 2 | E159: =IF(ISERROR(VLOOKUP(A159,Feriados!A:A,1,FALSE)),"n",VLOOKUP(A159,Feriados!A:A,1,FALSE)) -> n
A160: 44720 | B160: 109 | C160: =IF(E160<>"n",COUNTIF(B160:$B$4018,B160),IF(D160<6,0,COUNTIF(B160:$B$4018,B160))) -> 0 | D160: 3 | E160: =IF(ISERROR(VLOOKUP(A160,Feriados!A:A,1,FALSE)),"n",VLOOKUP(A160,Feriados!A:A,1,FALSE)) -> n
A161: 44721 | B161: 110 | C161: =IF(E161<>"n",COUNTIF(B161:$B$4018,B161),IF(D161<6,0,COUNTIF(B161:$B$4018,B161))) -> 0 | D161: 4 | E161: =IF(ISERROR(VLOOKUP(A161,Feriados!A:A,1,FALSE)),"n",VLOOKUP(A161,Feriados!A:A,1,FALSE)) -> n
A162: 44722 | B162: 111 | C162: =IF(E162<>"n",COUNTIF(B162:$B$4018,B162),IF(D162<6,0,COUNTIF(B162:$B$4018,B162))) -> 0 | D162: 5 | E162: =IF(ISERROR(VLOOKUP(A162,Feriados!A:A,1,FALSE)),"n",VLOOKUP(A162,Feriados!A:A,1,FALSE)) -> n
A163: 44723 | B163: 111 | C163: =IF(E163<>"n",COUNTIF(B163:$B$4018,B163),IF(D163<6,0,COUNTIF(B163:$B$4018,B163))) -> 2 | D163: 6 | E163: =IF(ISERROR(VLOOKUP(A163,Feriados!A:A,1,FALSE)),"n",VLOOKUP(A163,Feriados!A:A,1,FALSE)) -> n
A164: 44724 | B164: 111 | C164: =IF(E164<>"n",COUNTIF(B164:$B$4018,B164),IF(D164<6,0,COUNTIF(B164:$B$4018,B164))) -> 1 | D164: 7 | E164: =IF(ISERROR(VLOOKUP(A164,Feriados!A:A,1,FALSE)),"n",VLOOKUP(A164,Feriados!A:A,1,FALSE)) -> n
A165: 44725 | B165: 112 | C165: =IF(E165<>"n",COUNTIF(B165:$B$4018,B165),IF(D165<6,0,COUNTIF(B165:$B$4018,B165))) -> 0 | D165: 1 | E165: =IF(ISERROR(VLOOKUP(A165,Feriados!A:A,1,FALSE)),"n",VLOOKUP(A165,Feriados!A:A,1,FALSE)) -> n
A166: 44726 | B166: 113 | C166: =IF(E166<>"n",COUNTIF(B166:$B$4018,B166),IF(D166<6,0,COUNTIF(B166:$B$4018,B166))) -> 0 | D166: 2 | E166: =IF(ISERROR(VLOOKUP(A166,Feriados!A:A,1,FALSE)),"n",VLOOKUP(A166,Feriados!A:A,1,FALSE)) -> n
A167: 44727 | B167: 114 | C167: =IF(E167<>"n",COUNTIF(B167:$B$4018,B167),IF(D167<6,0,COUNTIF(B167:$B$4018,B167))) -> 0 | D167: 3 | E167: =IF(ISERROR(VLOOKUP(A167,Feriados!A:A,1,FALSE)),"n",VLOOKUP(A167,Feriados!A:A,1,FALSE)) -> n
A168: 44728 | B168: 114 | C168: =IF(E168<>"n",COUNTIF(B168:$B$4018,B168),IF(D168<6,0,COUNTIF(B168:$B$4018,B168))) -> 1 | D168: 4 | E168: =IF(ISERROR(VLOOKUP(A168,Feriados!A:A,1,FALSE)),"n",VLOOKUP(A168,Feriados!A:A,1,FALSE)) -> 2022-06-16
A169: 44729 | B169: 115 | C169: =IF(E169<>"n",COUNTIF(B169:$B$4018,B169),IF(D169<6,0,COUNTIF(B169:$B$4018,B169))) -> 0 | D169: 5 | E169: =IF(ISERROR(VLOOKUP(A169,Feriados!A:A,1,FALSE)),"n",VLOOKUP(A169,Feriados!A:A,1,FALSE)) -> n
A170: 44730 | B170: 115 | C170: =IF(E170<>"n",COUNTIF(B170:$B$4018,B170),IF(D170<6,0,COUNTIF(B170:$B$4018,B170))) -> 2 | D170: 6 | E170: =IF(ISERROR(VLOOKUP(A170,Feriados!A:A,1,FALSE)),"n",VLOOKUP(A170,Feriados!A:A,1,FALSE)) -> n
A171: 44731 | B171: 115 | C171: =IF(E171<>"n",COUNTIF(B171:$B$4018,B171),IF(D171<6,0,COUNTIF(B171:$B$4018,B171))) -> 1 | D171: 7 | E171: =IF(ISERROR(VLOOKUP(A171,Feriados!A:A,1,FALSE)),"n",VLOOKUP(A171,Feriados!A:A,1,FALSE)) -> n
A172: 44732 | B172: 116 | C172: =IF(E172<>"n",COUNTIF(B172:$B$4018,B172),IF(D172<6,0,COUNTIF(B172:$B$4018,B172))) -> 0 | D172: 1 | E172: =IF(ISERROR(VLOOKUP(A172,Feriados!A:A,1,FALSE)),"n",VLOOKUP(A172,Feriados!A:A,1,FALSE)) -> n
A173: 44733 | B173: 117 | C173: =IF(E173<>"n",COUNTIF(B173:$B$4018,B173),IF(D173<6,0,COUNTIF(B173:$B$4018,B173))) -> 0 | D173: 2 | E173: =IF(ISERROR(VLOOKUP(A173,Feriados!A:A,1,FALSE)),"n",VLOOKUP(A173,Feriados!A:A,1,FALSE)) -> n
A174: 44734 | B174: 118 | C174: =IF(E174<>"n",COUNTIF(B174:$B$4018,B174),IF(D174<6,0,COUNTIF(B174:$B$4018,B174))) -> 0 | D174: 3 | E174: =IF(ISERROR(VLOOKUP(A174,Feriados!A:A,1,FALSE)),"n",VLOOKUP(A174,Feriados!A:A,1,FALSE)) -> n
A175: 44735 | B175: 119 | C175: =IF(E175<>"n",COUNTIF(B175:$B$4018,B175),IF(D175<6,0,COUNTIF(B175:$B$4018,B175))) -> 0 | D175: 4 | E175: =IF(ISERROR(VLOOKUP(A175,Feriados!A:A,1,FALSE)),"n",VLOOKUP(A175,Feriados!A:A,1,FALSE)) -> n
A176: 44736 | B176: 120 | C176: =IF(E176<>"n",COUNTIF(B176:$B$4018,B176),IF(D176<6,0,COUNTIF(B176:$B$4018,B176))) -> 0 | D176: 5 | E176: =IF(ISERROR(VLOOKUP(A176,Feriados!A:A,1,FALSE)),"n",VLOOKUP(A176,Feriados!A:A,1,FALSE)) -> n
A177: 44737 | B177: 120 | C177: =IF(E177<>"n",COUNTIF(B177:$B$4018,B177),IF(D177<6,0,COUNTIF(B177:$B$4018,B177))) -> 2 | D177: 6 | E177: =IF(ISERROR(VLOOKUP(A177,Feriados!A:A,1,FALSE)),"n",VLOOKUP(A177,Feriados!A:A,1,FALSE)) -> n
A178: 44738 | B178: 120 | C178: =IF(E178<>"n",COUNTIF(B178:$B$4018,B178),IF(D178<6,0,COUNTIF(B178:$B$4018,B178))) -> 1 | D178: 7 | E178: =IF(ISERROR(VLOOKUP(A178,Feriados!A:A,1,FALSE)),"n",VLOOKUP(A178,Feriados!A:A,1,FALSE)) -> n
A179: 44739 | B179: 121 | C179: =IF(E179<>"n",COUNTIF(B179:$B$4018,B179),IF(D179<6,0,COUNTIF(B179:$B$4018,B179))) -> 0 | D179: 1 | E179: =IF(ISERROR(VLOOKUP(A179,Feriados!A:A,1,FALSE)),"n",VLOOKUP(A179,Feriados!A:A,1,FALSE)) -> n
A180: 44740 | B180: 122 | C180: =IF(E180<>"n",COUNTIF(B180:$B$4018,B180),IF(D180<6,0,COUNTIF(B180:$B$4018,B180))) -> 0 | D180: 2 | E180: =IF(ISERROR(VLOOKUP(A180,Feriados!A:A,1,FALSE)),"n",VLOOKUP(A180,Feriados!A:A,1,FALSE)) -> n
A181: 44741 | B181: 123 | C181: =IF(E181<>"n",COUNTIF(B181:$B$4018,B181),IF(D181<6,0,COUNTIF(B181:$B$4018,B181))) -> 0 | D181: 3 | E181: =IF(ISERROR(VLOOKUP(A181,Feriados!A:A,1,FALSE)),"n",VLOOKUP(A181,Feriados!A:A,1,FALSE)) -> n
A182: 44742 | B182: 124 | C182: =IF(E182<>"n",COUNTIF(B182:$B$4018,B182),IF(D182<6,0,COUNTIF(B182:$B$4018,B182))) -> 0 | D182: 4 | E182: =IF(ISERROR(VLOOKUP(A182,Feriados!A:A,1,FALSE)),"n",VLOOKUP(A182,Feriados!A:A,1,FALSE)) -> n
A183: 44743 | B183: 125 | C183: =IF(E183<>"n",COUNTIF(B183:$B$4018,B183),IF(D183<6,0,COUNTIF(B183:$B$4018,B183))) -> 0 | D183: 5 | E183: =IF(ISERROR(VLOOKUP(A183,Feriados!A:A,1,FALSE)),"n",VLOOKUP(A183,Feriados!A:A,1,FALSE)) -> n
A184: 44744 | B184: 125 | C184: =IF(E184<>"n",COUNTIF(B184:$B$4018,B184),IF(D184<6,0,COUNTIF(B184:$B$4018,B184))) -> 2 | D184: 6 | E184: =IF(ISERROR(VLOOKUP(A184,Feriados!A:A,1,FALSE)),"n",VLOOKUP(A184,Feriados!A:A,1,FALSE)) -> n
A185: 44745 | B185: 125 | C185: =IF(E185<>"n",COUNTIF(B185:$B$4018,B185),IF(D185<6,0,COUNTIF(B185:$B$4018,B185))) -> 1 | D185: 7 | E185: =IF(ISERROR(VLOOKUP(A185,Feriados!A:A,1,FALSE)),"n",VLOOKUP(A185,Feriados!A:A,1,FALSE)) -> n
A186: 44746 | B186: 126 | C186: =IF(E186<>"n",COUNTIF(B186:$B$4018,B186),IF(D186<6,0,COUNTIF(B186:$B$4018,B186))) -> 0 | D186: 1 | E186: =IF(ISERROR(VLOOKUP(A186,Feriados!A:A,1,FALSE)),"n",VLOOKUP(A186,Feriados!A:A,1,FALSE)) -> n
A187: 44747 | B187: 127 | C187: =IF(E187<>"n",COUNTIF(B187:$B$4018,B187),IF(D187<6,0,COUNTIF(B187:$B$4018,B187))) -> 0 | D187: 2 | E187: =IF(ISERROR(VLOOKUP(A187,Feriados!A:A,1,FALSE)),"n",VLOOKUP(A187,Feriados!A:A,1,FALSE)) -> n
A188: 44748 | B188: 128 | C188: =IF(E188<>"n",COUNTIF(B188:$B$4018,B188),IF(D188<6,0,COUNTIF(B188:$B$4018,B188))) -> 0 | D188: 3 | E188: =IF(ISERROR(VLOOKUP(A188,Feriados!A:A,1,FALSE)),"n",VLOOKUP(A188,Feriados!A:A,1,FALSE)) -> n
A189: 44749 | B189: 129 | C189: =IF(E189<>"n",COUNTIF(B189:$B$4018,B189),IF(D189<6,0,COUNTIF(B189:$B$4018,B189))) -> 0 | D189: 4 | E189: =IF(ISERROR(VLOOKUP(A189,Feriados!A:A,1,FALSE)),"n",VLOOKUP(A189,Feriados!A:A,1,FALSE)) -> n
A190: 44750 | B190: 130 | C190: =IF(E190<>"n",COUNTIF(B190:$B$4018,B190),IF(D190<6,0,COUNTIF(B190:$B$4018,B190))) -> 0 | D190: 5 | E190: =IF(ISERROR(VLOOKUP(A190,Feriados!A:A,1,FALSE)),"n",VLOOKUP(A190,Feriados!A:A,1,FALSE)) -> n
A191: 44751 | B191: 130 | C191: =IF(E191<>"n",COUNTIF(B191:$B$4018,B191),IF(D191<6,0,COUNTIF(B191:$B$4018,B191))) -> 2 | D191: 6 | E191: =IF(ISERROR(VLOOKUP(A191,Feriados!A:A,1,FALSE)),"n",VLOOKUP(A191,Feriados!A:A,1,FALSE)) -> n
A192: 44752 | B192: 130 | C192: =IF(E192<>"n",COUNTIF(B192:$B$4018,B192),IF(D192<6,0,COUNTIF(B192:$B$4018,B192))) -> 1 | D192: 7 | E192: =IF(ISERROR(VLOOKUP(A192,Feriados!A:A,1,FALSE)),"n",VLOOKUP(A192,Feriados!A:A,1,FALSE)) -> n
A193: 44753 | B193: 131 | C193: =IF(E193<>"n",COUNTIF(B193:$B$4018,B193),IF(D193<6,0,COUNTIF(B193:$B$4018,B193))) -> 0 | D193: 1 | E193: =IF(ISERROR(VLOOKUP(A193,Feriados!A:A,1,FALSE)),"n",VLOOKUP(A193,Feriados!A:A,1,FALSE)) -> n
A194: 44754 | B194: 132 | C194: =IF(E194<>"n",COUNTIF(B194:$B$4018,B194),IF(D194<6,0,COUNTIF(B194:$B$4018,B194))) -> 0 | D194: 2 | E194: =IF(ISERROR(VLOOKUP(A194,Feriados!A:A,1,FALSE)),"n",VLOOKUP(A194,Feriados!A:A,1,FALSE)) -> n
A195: 44755 | B195: =NETWORKDAYS($A$2,A195,feriados) -> 133 | C195: =IF(E195<>"n",COUNTIF(B195:$B$4018,B195),IF(D195<6,0,COUNTIF(B195:$B$4018,B195))) -> 0 | D195: =WEEKDAY(A195,2) -> 3 | E195: =IF(ISERROR(VLOOKUP(A195,Feriados!A:A,1,FALSE)),"n",VLOOKUP(A195,Feriados!A:A,1,FALSE)) -> n
A196: =A195+1 -> 44756 | B196: 134 | C196: =IF(E196<>"n",COUNTIF(B196:$B$4018,B196),IF(D196<6,0,COUNTIF(B196:$B$4018,B196))) -> 0 | D196: 4 | E196: =IF(ISERROR(VLOOKUP(A196,Feriados!A:A,1,FALSE)),"n",VLOOKUP(A196,Feriados!A:A,1,FALSE)) -> n
A197: 44757 | B197: 135 | C197: =IF(E197<>"n",COUNTIF(B197:$B$4018,B197),IF(D197<6,0,COUNTIF(B197:$B$4018,B197))) -> 0 | D197: 5 | E197: =IF(ISERROR(VLOOKUP(A197,Feriados!A:A,1,FALSE)),"n",VLOOKUP(A197,Feriados!A:A,1,FALSE)) -> n
A198: 44758 | B198: 135 | C198: =IF(E198<>"n",COUNTIF(B198:$B$4018,B198),IF(D198<6,0,COUNTIF(B198:$B$4018,B198))) -> 2 | D198: 6 | E198: =IF(ISERROR(VLOOKUP(A198,Feriados!A:A,1,FALSE)),"n",VLOOKUP(A198,Feriados!A:A,1,FALSE)) -> n
A199: 44759 | B199: 135 | C199: =IF(E199<>"n",COUNTIF(B199:$B$4018,B199),IF(D199<6,0,COUNTIF(B199:$B$4018,B199))) -> 1 | D199: 7 | E199: =IF(ISERROR(VLOOKUP(A199,Feriados!A:A,1,FALSE)),"n",VLOOKUP(A199,Feriados!A:A,1,FALSE)) -> n
A200: 44760 | B200: 136 | C200: =IF(E200<>"n",COUNTIF(B200:$B$4018,B200),IF(D200<6,0,COUNTIF(B200:$B$4018,B200))) -> 0 | D200: 1 | E200: =IF(ISERROR(VLOOKUP(A200,Feriados!A:A,1,FALSE)),"n",VLOOKUP(A200,Feriados!A:A,1,FALSE)) -> n
... 3818 more rows

Sheet Cliente (hidden)
A1: Fornecedor / Cliente
A2: Fulano de Tal

Sheet Titular do cheque (hidden)
A1: Titular do Cheque
A2: Fulano de Tal

Sheet Banco (hidden)
A1: Banco (ou Nº do Banco)
A2: Bradesco
A3: Brasil
A4: Caixa
A5: HSBC
A6: Itaú
A7: Santander

Sheet Transf (hidden)
A1: Data dos Vencimentos | B1: Valor Cheque | C1: Titular do Cheque | D1: Nº ou Banco | E1: Nº da Agência | F1: Nº do Cheque | G1: Dias p/ Comp. | H1: Qtde dias | I1: Total dos Juros | J1: IOF | K1: Valor Pago pela troca | L1: Valor à Receber | M1: XX | N1: XX | O1: XX | P1: XX | Q1: XX | R1: XX | S1: XX | T1: XX | U1: Nº Desconto | V1: Seq. | W1: Concatenar | X1: Cliente | Y1: Data da Troca | Z1: Data Vencimentos | AA1: Valor Cheque | AB1: Titular do Cheque | AC1: Nº ou Banco | AD1: Nº da Agência | AE1: Nº do Cheque | AF1: Dias p/ Comp. | AG1: Qtde dias | AH1: % Juros Mensal | AI1: Total dos Juros | AJ1: Borderô (ou TAC) | AK1: Borderô rateado? | AL1: % do IOF | AM1: Valor do IOF | AN1: Valor Pago pela troca | AO1: Valor Recebido | AP1: Asterisco | AQ1: Considerado vcto 1º dia útil? | AR1: Cheque devolvido? | AS1: Situação do cheque | AT1: Obs. 1 | AU1: Obs. 2 | AV1: Obs. 3 | AW1: Obs. 4 | AX1: Obs. 5 | AY1: Obs. 6 | AZ1: Somase
A2: 2016-08-15 | B2: 358 | C2: 0 | D2: 0 | E2: 0 | F2: 0 | G2: 2 | H2: 39 | I2: 0.0624 | J2: 0 | K2: 22.34 | L2: 335.66 | N2: 0 | O2: 1 | P2: 42599 | Q2: 2 | S2: 0 | T2: 0 | U2: 2 | V2: 1 | W2: =CONCATENATE(U2,"-",V2) -> 2-1 | X2: Pepe | Y2: 2016-07-09 | Z2: 2016-08-15 | AA2: 358 | AB2: 0 | AC2: 0 | AD2: 0 | AE2: 0 | AF2: 2 | AG2: 39 | AH2: 0.048 | AI2: 0.0624 | AJ2: 0 | AK2: Não | AL2: 0 | AM2: 0 | AN2: 22.34 | AO2: 335.66 | AQ2: Sim | AZ2: =IF(AR2="Sim",1,0) -> 0
A3: 2016-07-20 | B3: 1542 | C3: 0 | D3: 0 | E3: 0 | F3: 0 | G3: 2 | H3: 13 | I3: 0.0208 | J3: 0 | K3: 32.07 | L3: 1509.93 | N3: 0 | O3: 3 | P3: 42573 | Q3: 2 | S3: 0 | T3: 0 | U3: 2 | V3: 2 | W3: =CONCATENATE(U3,"-",V3) -> 2-2 | X3: Pepe | Y3: 2016-07-09 | Z3: 2016-07-20 | AA3: 1542 | AB3: 0 | AC3: 0 | AD3: 0 | AE3: 0 | AF3: 2 | AG3: 13 | AH3: 0.048 | AI3: 0.0208 | AJ3: 0 | AK3: Não | AL3: 0 | AM3: 0 | AN3: 32.07 | AO3: 1509.93 | AQ3: Sim | AZ3: =IF(AR3="Sim",1,0) -> 0
A4: 2016-08-25 | B4: 3520 | C4: Fulano de Tal | D4: Brasil | E4: 1545 | F4: 6889889 | G4: 2 | H4: 51 | I4: 0.0816 | J4: 0 | K4: 287.23 | L4: 3232.77 | N4: 0 | O4: 4 | P4: 42611 | Q4: 4 | S4: 0 | T4: 0 | U4: 2 | V4: 3 | W4: 2-3 | X4: Pepe | Y4: 2016-07-09 | Z4: 2016-08-25 | AA4: 3520 | AB4: Fulano de Tal | AC4: Brasil | AD4: 1545 | AE4: 6889889 | AF4: 2 | AG4: 51 | AH4: 0.048 | AI4: 0.0816 | AJ4: 0 | AK4: Não | AL4: 0 | AM4: 0 | AN4: 287.23 | AO4: 3232.77 | AQ4: Sim | AZ4: 0
A5: 2016-07-15 | B5: 1500 | C5: Pedro Paulo | D5: Caixa | E5: 22545 | F5: 132232 | G5: 2 | H5: 10 | I5: 0.016 | J5: 0 | K5: 24 | L5: 1476 | N5: 0 | O5: 5 | P5: 42570 | Q5: 4 | S5: 0 | T5: 0 | U5: 2 | V5: 4 | W5: 2-4 | X5: Pepe | Y5: 2016-07-09 | Z5: 2016-07-15 | AA5: 1500 | AB5: Pedro Paulo | AC5: Caixa | AD5: 22545 | AE5: 132232 | AF5: 2 | AG5: 10 | AH5: 0.048 | AI5: 0.016 | AJ5: 0 | AK5: Não | AL5: 0 | AM5: 0 | AN5: 24 | AO5: 1476 | AQ5: Sim | AZ5: 0

Sheet BD (hidden)
A2: Nº Desconto | B2: Seq. | C2: Concatenar | D2: Fornecedor / Cliente | E2: Data da Troca | F2: Data Vencimentos | G2: Valor Cheque | H2: Titular do Cheque | I2: Nº ou Banco | J2: Nº da Agência | K2: Nº do Cheque | L2: Dias p/ Comp. | M2: Qtde dias | N2: % Juros Mensal | O2: Total dos Juros | P2: Borderô (ou TAC) | Q2: Borderô rateado? | R2: % do IOF | S2: Valor do IOF | T2: Valor Pago pela troca | U2: Valor Recebido | V2: id dia útil | W2: Considerado vcto no 1º dia útil? | X2: Cheque devolvido? | Y2: Situação do cheque | Z2: CNPJ ou CPF | AA2: Telefone | AB2: Obs. 1 | AC2: Obs. 2 | AD2: Obs. 3 | AE2: Obs. 4 | AF2: Somase
A3: 0 | B3: 0 | C3: =CONCATENATE(A3,"-",B3) -> 0-0 | D3: ** Não exclua esta linha enquanto não houver outras linhas com informações.

Sheet Consulta (hidden)
B1: Fornec/Cliente: | C1: =IF(G1=0," Informe um Nº de Desconto",IF(ISERROR(VLOOKUP($G$1,BD!$A:$W,4,FALSE))," Nº Desconto Inexistente",VLOOKUP($G$1,BD!$A:$W,4,FALSE))) -> Informe um Nº de Desconto | F1: Nº Desconto: | G1: =MAX(BD!A:A) -> 0 | P1: =IF(T2="","",IF(T2="Sim","Foi considerado o 1º dia útil para o vencimento.","Não foi considerado o 1º dia útil para o vcto.")) ->  | T1: =IF(ISERROR(VLOOKUP($G$1,BD!$A:$W,17,FALSE)),"",VLOOKUP($G$1,BD!$A:$W,17,FALSE)) -> 0
B2: =IF(ISERROR(VLOOKUP($G$1,BD!$A:$W,5,FALSE)),"",VLOOKUP($G$1,BD!$A:$W,5,FALSE)) -> 00:00:00 | C2: Data da Troca. | E2: =IF(ISERROR(VLOOKUP($G$1,BD!$A:$W,16,FALSE)),"",VLOOKUP($G$1,BD!$A:$W,16,FALSE)) -> 0 | F2: Borderô (ou TAC) | T2: =IF($G$1=0,"",IF(ISERROR(VLOOKUP($G$1,BD!$A:$W,23,FALSE)),"",VLOOKUP($G$1,BD!$A:$W,23,FALSE))) -> 
B3: =IF(ISERROR(VLOOKUP($G$1,BD!$A:$W,14,FALSE)),"",VLOOKUP($G$1,BD!$A:$W,14,FALSE)) -> 0 | C3: Juros ao Mês. | E3: =IF(ISERROR(VLOOKUP($G$1,BD!$A:$W,18,FALSE)),"",VLOOKUP($G$1,BD!$A:$W,18,FALSE)) -> 0 | F3: IOF
A4: Seq | B4: Data Vencimentos | C4: Valor Cheque | D4: Titular do Cheque | E4: Nº ou Banco | F4: Nº da Agência | G4: Nº do Cheque | H4: Dias p/ Comp. | I4: Qtde dias | J4: Total dos Juros | K4: Valor do IOF | L4: Valor Pago pela troca | M4: Valor à Receber
A5: Seq | B5: Data dos Vencimentos | C5: Valor Cheque | D5: Titular do Cheque | E5: Nº ou Banco | F5: Nº da Agência | G5: Nº do Cheque | H5: Dias p/ Comp. | I5: Qtde dias | J5: Total dos Juros | K5: IOF | L5: Valor Pago pela troca | M5: Valor à Receber | N5: Id
A6: 1 | B6: =IF(ISERROR(VLOOKUP($G$1&"-"&$A6,BD!$C:$W,4,FALSE)),"",VLOOKUP($G$1&"-"&$A6,BD!$C:$W,4,FALSE)) ->  | C6: =IF(ISERROR(VLOOKUP($G$1&"-"&$A6,BD!$C:$W,5,FALSE)),"",VLOOKUP($G$1&"-"&$A6,BD!$C:$W,5,FALSE)) ->  | D6: =IF(ISERROR(VLOOKUP($G$1&"-"&$A6,BD!$C:$W,6,FALSE)),"",VLOOKUP($G$1&"-"&$A6,BD!$C:$W,6,FALSE)) ->  | E6: =IF(ISERROR(VLOOKUP($G$1&"-"&$A6,BD!$C:$W,7,FALSE)),"",VLOOKUP($G$1&"-"&$A6,BD!$C:$W,7,FALSE)) ->  | F6: =IF(ISERROR(VLOOKUP($G$1&"-"&$A6,BD!$C:$W,8,FALSE)),"",VLOOKUP($G$1&"-"&$A6,BD!$C:$W,8,FALSE)) ->  | G6: =IF(ISERROR(VLOOKUP($G$1&"-"&$A6,BD!$C:$W,9,FALSE)),"",VLOOKUP($G$1&"-"&$A6,BD!$C:$W,9,FALSE)) ->  | H6: =IF(ISERROR(VLOOKUP($G$1&"-"&$A6,BD!$C:$W,10,FALSE)),"",VLOOKUP($G$1&"-"&$A6,BD!$C:$W,10,FALSE)) ->  | I6: =IF(ISERROR(VLOOKUP($G$1&"-"&$A6,BD!$C:$W,11,FALSE)),0,VLOOKUP($G$1&"-"&$A6,BD!$C:$W,11,FALSE)) -> 0 | J6: =IF(ISERROR(VLOOKUP($G$1&"-"&$A6,BD!$C:$W,13,FALSE)),"",VLOOKUP($G$1&"-"&$A6,BD!$C:$W,13,FALSE)) ->  | K6: =IF(ISERROR(VLOOKUP($G$1&"-"&$A6,BD!$C:$W,17,FALSE)),"",VLOOKUP($G$1&"-"&$A6,BD!$C:$W,17,FALSE)) ->  | L6: =IF(ISERROR(VLOOKUP($G$1&"-"&$A6,BD!$C:$W,18,FALSE)),"",VLOOKUP($G$1&"-"&$A6,BD!$C:$W,18,FALSE)) ->  | M6: =IF(ISERROR(VLOOKUP($G$1&"-"&$A6,BD!$C:$W,19,FALSE)),"",VLOOKUP($G$1&"-"&$A6,BD!$C:$W,19,FALSE)) ->  | N6: =IF(ISERROR(VLOOKUP($G$1&"-"&$A6,BD!$C:$W,20,FALSE)),"",VLOOKUP($G$1&"-"&$A6,BD!$C:$W,20,FALSE)) ->  | O6: =IF(T6>0,"Devolvido "&T6&" ch",0) -> 0 | T6: =SUMIF(BD!H:H,D6,BD!AF:AF) -> 0
A7: 2 | B7: =IF(ISERROR(VLOOKUP($G$1&"-"&$A7,BD!$C:$W,4,FALSE)),"",VLOOKUP($G$1&"-"&$A7,BD!$C:$W,4,FALSE)) ->  | C7: =IF(ISERROR(VLOOKUP($G$1&"-"&$A7,BD!$C:$W,5,FALSE)),"",VLOOKUP($G$1&"-"&$A7,BD!$C:$W,5,FALSE)) ->  | D7: =IF(ISERROR(VLOOKUP($G$1&"-"&$A7,BD!$C:$W,6,FALSE)),"",VLOOKUP($G$1&"-"&$A7,BD!$C:$W,6,FALSE)) ->  | E7: =IF(ISERROR(VLOOKUP($G$1&"-"&$A7,BD!$C:$W,7,FALSE)),"",VLOOKUP($G$1&"-"&$A7,BD!$C:$W,7,FALSE)) ->  | F7: =IF(ISERROR(VLOOKUP($G$1&"-"&$A7,BD!$C:$W,8,FALSE)),"",VLOOKUP($G$1&"-"&$A7,BD!$C:$W,8,FALSE)) ->  | G7: =IF(ISERROR(VLOOKUP($G$1&"-"&$A7,BD!$C:$W,9,FALSE)),"",VLOOKUP($G$1&"-"&$A7,BD!$C:$W,9,FALSE)) ->  | H7: =IF(ISERROR(VLOOKUP($G$1&"-"&$A7,BD!$C:$W,10,FALSE)),"",VLOOKUP($G$1&"-"&$A7,BD!$C:$W,10,FALSE)) ->  | I7: =IF(ISERROR(VLOOKUP($G$1&"-"&$A7,BD!$C:$W,11,FALSE)),0,VLOOKUP($G$1&"-"&$A7,BD!$C:$W,11,FALSE)) -> 0 | J7: =IF(ISERROR(VLOOKUP($G$1&"-"&$A7,BD!$C:$W,13,FALSE)),"",VLOOKUP($G$1&"-"&$A7,BD!$C:$W,13,FALSE)) ->  | K7: =IF(ISERROR(VLOOKUP($G$1&"-"&$A7,BD!$C:$W,17,FALSE)),"",VLOOKUP($G$1&"-"&$A7,BD!$C:$W,17,FALSE)) ->  | L7: =IF(ISERROR(VLOOKUP($G$1&"-"&$A7,BD!$C:$W,18,FALSE)),"",VLOOKUP($G$1&"-"&$A7,BD!$C:$W,18,FALSE)) ->  | M7: =IF(ISERROR(VLOOKUP($G$1&"-"&$A7,BD!$C:$W,19,FALSE)),"",VLOOKUP($G$1&"-"&$A7,BD!$C:$W,19,FALSE)) ->  | N7: =IF(ISERROR(VLOOKUP($G$1&"-"&$A7,BD!$C:$W,20,FALSE)),"",VLOOKUP($G$1&"-"&$A7,BD!$C:$W,20,FALSE)) ->  | O7: =IF(T7>0,"Devolvido "&T7&" ch",0) -> 0 | T7: =SUMIF(BD!H:H,D7,BD!AF:AF) -> 0
A8: 3 | B8: =IF(ISERROR(VLOOKUP($G$1&"-"&$A8,BD!$C:$W,4,FALSE)),"",VLOOKUP($G$1&"-"&$A8,BD!$C:$W,4,FALSE)) ->  | C8: =IF(ISERROR(VLOOKUP($G$1&"-"&$A8,BD!$C:$W,5,FALSE)),"",VLOOKUP($G$1&"-"&$A8,BD!$C:$W,5,FALSE)) ->  | D8: =IF(ISERROR(VLOOKUP($G$1&"-"&$A8,BD!$C:$W,6,FALSE)),"",VLOOKUP($G$1&"-"&$A8,BD!$C:$W,6,FALSE)) ->  | E8: =IF(ISERROR(VLOOKUP($G$1&"-"&$A8,BD!$C:$W,7,FALSE)),"",VLOOKUP($G$1&"-"&$A8,BD!$C:$W,7,FALSE)) ->  | F8: =IF(ISERROR(VLOOKUP($G$1&"-"&$A8,BD!$C:$W,8,FALSE)),"",VLOOKUP($G$1&"-"&$A8,BD!$C:$W,8,FALSE)) ->  | G8: =IF(ISERROR(VLOOKUP($G$1&"-"&$A8,BD!$C:$W,9,FALSE)),"",VLOOKUP($G$1&"-"&$A8,BD!$C:$W,9,FALSE)) ->  | H8: =IF(ISERROR(VLOOKUP($G$1&"-"&$A8,BD!$C:$W,10,FALSE)),"",VLOOKUP($G$1&"-"&$A8,BD!$C:$W,10,FALSE)) ->  | I8: =IF(ISERROR(VLOOKUP($G$1&"-"&$A8,BD!$C:$W,11,FALSE)),0,VLOOKUP($G$1&"-"&$A8,BD!$C:$W,11,FALSE)) -> 0 | J8: =IF(ISERROR(VLOOKUP($G$1&"-"&$A8,BD!$C:$W,13,FALSE)),"",VLOOKUP($G$1&"-"&$A8,BD!$C:$W,13,FALSE)) ->  | K8: =IF(ISERROR(VLOOKUP($G$1&"-"&$A8,BD!$C:$W,17,FALSE)),"",VLOOKUP($G$1&"-"&$A8,BD!$C:$W,17,FALSE)) ->  | L8: =IF(ISERROR(VLOOKUP($G$1&"-"&$A8,BD!$C:$W,18,FALSE)),"",VLOOKUP($G$1&"-"&$A8,BD!$C:$W,18,FALSE)) ->  | M8: =IF(ISERROR(VLOOKUP($G$1&"-"&$A8,BD!$C:$W,19,FALSE)),"",VLOOKUP($G$1&"-"&$A8,BD!$C:$W,19,FALSE)) ->  | N8: =IF(ISERROR(VLOOKUP($G$1&"-"&$A8,BD!$C:$W,20,FALSE)),"",VLOOKUP($G$1&"-"&$A8,BD!$C:$W,20,FALSE)) ->  | O8: 0 | T8: =SUMIF(BD!H:H,D8,BD!AF:AF) -> 0
A9: 4 | B9: =IF(ISERROR(VLOOKUP($G$1&"-"&$A9,BD!$C:$W,4,FALSE)),"",VLOOKUP($G$1&"-"&$A9,BD!$C:$W,4,FALSE)) ->  | C9: =IF(ISERROR(VLOOKUP($G$1&"-"&$A9,BD!$C:$W,5,FALSE)),"",VLOOKUP($G$1&"-"&$A9,BD!$C:$W,5,FALSE)) ->  | D9: =IF(ISERROR(VLOOKUP($G$1&"-"&$A9,BD!$C:$W,6,FALSE)),"",VLOOKUP($G$1&"-"&$A9,BD!$C:$W,6,FALSE)) ->  | E9: =IF(ISERROR(VLOOKUP($G$1&"-"&$A9,BD!$C:$W,7,FALSE)),"",VLOOKUP($G$1&"-"&$A9,BD!$C:$W,7,FALSE)) ->  | F9: =IF(ISERROR(VLOOKUP($G$1&"-"&$A9,BD!$C:$W,8,FALSE)),"",VLOOKUP($G$1&"-"&$A9,BD!$C:$W,8,FALSE)) ->  | G9: =IF(ISERROR(VLOOKUP($G$1&"-"&$A9,BD!$C:$W,9,FALSE)),"",VLOOKUP($G$1&"-"&$A9,BD!$C:$W,9,FALSE)) ->  | H9: =IF(ISERROR(VLOOKUP($G$1&"-"&$A9,BD!$C:$W,10,FALSE)),"",VLOOKUP($G$1&"-"&$A9,BD!$C:$W,10,FALSE)) ->  | I9: =IF(ISERROR(VLOOKUP($G$1&"-"&$A9,BD!$C:$W,11,FALSE)),0,VLOOKUP($G$1&"-"&$A9,BD!$C:$W,11,FALSE)) -> 0 | J9: =IF(ISERROR(VLOOKUP($G$1&"-"&$A9,BD!$C:$W,13,FALSE)),"",VLOOKUP($G$1&"-"&$A9,BD!$C:$W,13,FALSE)) ->  | K9: =IF(ISERROR(VLOOKUP($G$1&"-"&$A9,BD!$C:$W,17,FALSE)),"",VLOOKUP($G$1&"-"&$A9,BD!$C:$W,17,FALSE)) ->  | L9: =IF(ISERROR(VLOOKUP($G$1&"-"&$A9,BD!$C:$W,18,FALSE)),"",VLOOKUP($G$1&"-"&$A9,BD!$C:$W,18,FALSE)) ->  | M9: =IF(ISERROR(VLOOKUP($G$1&"-"&$A9,BD!$C:$W,19,FALSE)),"",VLOOKUP($G$1&"-"&$A9,BD!$C:$W,19,FALSE)) ->  | N9: =IF(ISERROR(VLOOKUP($G$1&"-"&$A9,BD!$C:$W,20,FALSE)),"",VLOOKUP($G$1&"-"&$A9,BD!$C:$W,20,FALSE)) ->  | O9: 0 | T9: =SUMIF(BD!H:H,D9,BD!AF:AF) -> 0
A10: 5 | B10: =IF(ISERROR(VLOOKUP($G$1&"-"&$A10,BD!$C:$W,4,FALSE)),"",VLOOKUP($G$1&"-"&$A10,BD!$C:$W,4,FALSE)) ->  | C10: =IF(ISERROR(VLOOKUP($G$1&"-"&$A10,BD!$C:$W,5,FALSE)),"",VLOOKUP($G$1&"-"&$A10,BD!$C:$W,5,FALSE)) ->  | D10: =IF(ISERROR(VLOOKUP($G$1&"-"&$A10,BD!$C:$W,6,FALSE)),"",VLOOKUP($G$1&"-"&$A10,BD!$C:$W,6,FALSE)) ->  | E10: =IF(ISERROR(VLOOKUP($G$1&"-"&$A10,BD!$C:$W,7,FALSE)),"",VLOOKUP($G$1&"-"&$A10,BD!$C:$W,7,FALSE)) ->  | F10: =IF(ISERROR(VLOOKUP($G$1&"-"&$A10,BD!$C:$W,8,FALSE)),"",VLOOKUP($G$1&"-"&$A10,BD!$C:$W,8,FALSE)) ->  | G10: =IF(ISERROR(VLOOKUP($G$1&"-"&$A10,BD!$C:$W,9,FALSE)),"",VLOOKUP($G$1&"-"&$A10,BD!$C:$W,9,FALSE)) ->  | H10: =IF(ISERROR(VLOOKUP($G$1&"-"&$A10,BD!$C:$W,10,FALSE)),"",VLOOKUP($G$1&"-"&$A10,BD!$C:$W,10,FALSE)) ->  | I10: =IF(ISERROR(VLOOKUP($G$1&"-"&$A10,BD!$C:$W,11,FALSE)),0,VLOOKUP($G$1&"-"&$A10,BD!$C:$W,11,FALSE)) -> 0 | J10: =IF(ISERROR(VLOOKUP($G$1&"-"&$A10,BD!$C:$W,13,FALSE)),"",VLOOKUP($G$1&"-"&$A10,BD!$C:$W,13,FALSE)) ->  | K10: =IF(ISERROR(VLOOKUP($G$1&"-"&$A10,BD!$C:$W,17,FALSE)),"",VLOOKUP($G$1&"-"&$A10,BD!$C:$W,17,FALSE)) ->  | L10: =IF(ISERROR(VLOOKUP($G$1&"-"&$A10,BD!$C:$W,18,FALSE)),"",VLOOKUP($G$1&"-"&$A10,BD!$C:$W,18,FALSE)) ->  | M10: =IF(ISERROR(VLOOKUP($G$1&"-"&$A10,BD!$C:$W,19,FALSE)),"",VLOOKUP($G$1&"-"&$A10,BD!$C:$W,19,FALSE)) ->  | N10: =IF(ISERROR(VLOOKUP($G$1&"-"&$A10,BD!$C:$W,20,FALSE)),"",VLOOKUP($G$1&"-"&$A10,BD!$C:$W,20,FALSE)) ->  | O10: 0 | T10: =SUMIF(BD!H:H,D10,BD!AF:AF) -> 0
A11: 6 | B11: =IF(ISERROR(VLOOKUP($G$1&"-"&$A11,BD!$C:$W,4,FALSE)),"",VLOOKUP($G$1&"-"&$A11,BD!$C:$W,4,FALSE)) ->  | C11: =IF(ISERROR(VLOOKUP($G$1&"-"&$A11,BD!$C:$W,5,FALSE)),"",VLOOKUP($G$1&"-"&$A11,BD!$C:$W,5,FALSE)) ->  | D11: =IF(ISERROR(VLOOKUP($G$1&"-"&$A11,BD!$C:$W,6,FALSE)),"",VLOOKUP($G$1&"-"&$A11,BD!$C:$W,6,FALSE)) ->  | E11: =IF(ISERROR(VLOOKUP($G$1&"-"&$A11,BD!$C:$W,7,FALSE)),"",VLOOKUP($G$1&"-"&$A11,BD!$C:$W,7,FALSE)) ->  | F11: =IF(ISERROR(VLOOKUP($G$1&"-"&$A11,BD!$C:$W,8,FALSE)),"",VLOOKUP($G$1&"-"&$A11,BD!$C:$W,8,FALSE)) ->  | G11: =IF(ISERROR(VLOOKUP($G$1&"-"&$A11,BD!$C:$W,9,FALSE)),"",VLOOKUP($G$1&"-"&$A11,BD!$C:$W,9,FALSE)) ->  | H11: =IF(ISERROR(VLOOKUP($G$1&"-"&$A11,BD!$C:$W,10,FALSE)),"",VLOOKUP($G$1&"-"&$A11,BD!$C:$W,10,FALSE)) ->  | I11: =IF(ISERROR(VLOOKUP($G$1&"-"&$A11,BD!$C:$W,11,FALSE)),0,VLOOKUP($G$1&"-"&$A11,BD!$C:$W,11,FALSE)) -> 0 | J11: =IF(ISERROR(VLOOKUP($G$1&"-"&$A11,BD!$C:$W,13,FALSE)),"",VLOOKUP($G$1&"-"&$A11,BD!$C:$W,13,FALSE)) ->  | K11: =IF(ISERROR(VLOOKUP($G$1&"-"&$A11,BD!$C:$W,17,FALSE)),"",VLOOKUP($G$1&"-"&$A11,BD!$C:$W,17,FALSE)) ->  | L11: =IF(ISERROR(VLOOKUP($G$1&"-"&$A11,BD!$C:$W,18,FALSE)),"",VLOOKUP($G$1&"-"&$A11,BD!$C:$W,18,FALSE)) ->  | M11: =IF(ISERROR(VLOOKUP($G$1&"-"&$A11,BD!$C:$W,19,FALSE)),"",VLOOKUP($G$1&"-"&$A11,BD!$C:$W,19,FALSE)) ->  | N11: =IF(ISERROR(VLOOKUP($G$1&"-"&$A11,BD!$C:$W,20,FALSE)),"",VLOOKUP($G$1&"-"&$A11,BD!$C:$W,20,FALSE)) ->  | O11: 0 | T11: =SUMIF(BD!H:H,D11,BD!AF:AF) -> 0
A12: 7 | B12: =IF(ISERROR(VLOOKUP($G$1&"-"&$A12,BD!$C:$W,4,FALSE)),"",VLOOKUP($G$1&"-"&$A12,BD!$C:$W,4,FALSE)) ->  | C12: =IF(ISERROR(VLOOKUP($G$1&"-"&$A12,BD!$C:$W,5,FALSE)),"",VLOOKUP($G$1&"-"&$A12,BD!$C:$W,5,FALSE)) ->  | D12: =IF(ISERROR(VLOOKUP($G$1&"-"&$A12,BD!$C:$W,6,FALSE)),"",VLOOKUP($G$1&"-"&$A12,BD!$C:$W,6,FALSE)) ->  | E12: =IF(ISERROR(VLOOKUP($G$1&"-"&$A12,BD!$C:$W,7,FALSE)),"",VLOOKUP($G$1&"-"&$A12,BD!$C:$W,7,FALSE)) ->  | F12: =IF(ISERROR(VLOOKUP($G$1&"-"&$A12,BD!$C:$W,8,FALSE)),"",VLOOKUP($G$1&"-"&$A12,BD!$C:$W,8,FALSE)) ->  | G12: =IF(ISERROR(VLOOKUP($G$1&"-"&$A12,BD!$C:$W,9,FALSE)),"",VLOOKUP($G$1&"-"&$A12,BD!$C:$W,9,FALSE)) ->  | H12: =IF(ISERROR(VLOOKUP($G$1&"-"&$A12,BD!$C:$W,10,FALSE)),"",VLOOKUP($G$1&"-"&$A12,BD!$C:$W,10,FALSE)) ->  | I12: =IF(ISERROR(VLOOKUP($G$1&"-"&$A12,BD!$C:$W,11,FALSE)),0,VLOOKUP($G$1&"-"&$A12,BD!$C:$W,11,FALSE)) -> 0 | J12: =IF(ISERROR(VLOOKUP($G$1&"-"&$A12,BD!$C:$W,13,FALSE)),"",VLOOKUP($G$1&"-"&$A12,BD!$C:$W,13,FALSE)) ->  | K12: =IF(ISERROR(VLOOKUP($G$1&"-"&$A12,BD!$C:$W,17,FALSE)),"",VLOOKUP($G$1&"-"&$A12,BD!$C:$W,17,FALSE)) ->  | L12: =IF(ISERROR(VLOOKUP($G$1&"-"&$A12,BD!$C:$W,18,FALSE)),"",VLOOKUP($G$1&"-"&$A12,BD!$C:$W,18,FALSE)) ->  | M12: =IF(ISERROR(VLOOKUP($G$1&"-"&$A12,BD!$C:$W,19,FALSE)),"",VLOOKUP($G$1&"-"&$A12,BD!$C:$W,19,FALSE)) ->  | N12: =IF(ISERROR(VLOOKUP($G$1&"-"&$A12,BD!$C:$W,20,FALSE)),"",VLOOKUP($G$1&"-"&$A12,BD!$C:$W,20,FALSE)) ->  | O12: 0 | T12: =SUMIF(BD!H:H,D12,BD!AF:AF) -> 0
A13: 8 | B13: =IF(ISERROR(VLOOKUP($G$1&"-"&$A13,BD!$C:$W,4,FALSE)),"",VLOOKUP($G$1&"-"&$A13,BD!$C:$W,4,FALSE)) ->  | C13: =IF(ISERROR(VLOOKUP($G$1&"-"&$A13,BD!$C:$W,5,FALSE)),"",VLOOKUP($G$1&"-"&$A13,BD!$C:$W,5,FALSE)) ->  | D13: =IF(ISERROR(VLOOKUP($G$1&"-"&$A13,BD!$C:$W,6,FALSE)),"",VLOOKUP($G$1&"-"&$A13,BD!$C:$W,6,FALSE)) ->  | E13: =IF(ISERROR(VLOOKUP($G$1&"-"&$A13,BD!$C:$W,7,FALSE)),"",VLOOKUP($G$1&"-"&$A13,BD!$C:$W,7,FALSE)) ->  | F13: =IF(ISERROR(VLOOKUP($G$1&"-"&$A13,BD!$C:$W,8,FALSE)),"",VLOOKUP($G$1&"-"&$A13,BD!$C:$W,8,FALSE)) ->  | G13: =IF(ISERROR(VLOOKUP($G$1&"-"&$A13,BD!$C:$W,9,FALSE)),"",VLOOKUP($G$1&"-"&$A13,BD!$C:$W,9,FALSE)) ->  | H13: =IF(ISERROR(VLOOKUP($G$1&"-"&$A13,BD!$C:$W,10,FALSE)),"",VLOOKUP($G$1&"-"&$A13,BD!$C:$W,10,FALSE)) ->  | I13: =IF(ISERROR(VLOOKUP($G$1&"-"&$A13,BD!$C:$W,11,FALSE)),0,VLOOKUP($G$1&"-"&$A13,BD!$C:$W,11,FALSE)) -> 0 | J13: =IF(ISERROR(VLOOKUP($G$1&"-"&$A13,BD!$C:$W,13,FALSE)),"",VLOOKUP($G$1&"-"&$A13,BD!$C:$W,13,FALSE)) ->  | K13: =IF(ISERROR(VLOOKUP($G$1&"-"&$A13,BD!$C:$W,17,FALSE)),"",VLOOKUP($G$1&"-"&$A13,BD!$C:$W,17,FALSE)) ->  | L13: =IF(ISERROR(VLOOKUP($G$1&"-"&$A13,BD!$C:$W,18,FALSE)),"",VLOOKUP($G$1&"-"&$A13,BD!$C:$W,18,FALSE)) ->  | M13: =IF(ISERROR(VLOOKUP($G$1&"-"&$A13,BD!$C:$W,19,FALSE)),"",VLOOKUP($G$1&"-"&$A13,BD!$C:$W,19,FALSE)) ->  | N13: =IF(ISERROR(VLOOKUP($G$1&"-"&$A13,BD!$C:$W,20,FALSE)),"",VLOOKUP($G$1&"-"&$A13,BD!$C:$W,20,FALSE)) ->  | O13: 0 | T13: =SUMIF(BD!H:H,D13,BD!AF:AF) -> 0
A14: 9 | B14: =IF(ISERROR(VLOOKUP($G$1&"-"&$A14,BD!$C:$W,4,FALSE)),"",VLOOKUP($G$1&"-"&$A14,BD!$C:$W,4,FALSE)) ->  | C14: =IF(ISERROR(VLOOKUP($G$1&"-"&$A14,BD!$C:$W,5,FALSE)),"",VLOOKUP($G$1&"-"&$A14,BD!$C:$W,5,FALSE)) ->  | D14: =IF(ISERROR(VLOOKUP($G$1&"-"&$A14,BD!$C:$W,6,FALSE)),"",VLOOKUP($G$1&"-"&$A14,BD!$C:$W,6,FALSE)) ->  | E14: =IF(ISERROR(VLOOKUP($G$1&"-"&$A14,BD!$C:$W,7,FALSE)),"",VLOOKUP($G$1&"-"&$A14,BD!$C:$W,7,FALSE)) ->  | F14: =IF(ISERROR(VLOOKUP($G$1&"-"&$A14,BD!$C:$W,8,FALSE)),"",VLOOKUP($G$1&"-"&$A14,BD!$C:$W,8,FALSE)) ->  | G14: =IF(ISERROR(VLOOKUP($G$1&"-"&$A14,BD!$C:$W,9,FALSE)),"",VLOOKUP($G$1&"-"&$A14,BD!$C:$W,9,FALSE)) ->  | H14: =IF(ISERROR(VLOOKUP($G$1&"-"&$A14,BD!$C:$W,10,FALSE)),"",VLOOKUP($G$1&"-"&$A14,BD!$C:$W,10,FALSE)) ->  | I14: =IF(ISERROR(VLOOKUP($G$1&"-"&$A14,BD!$C:$W,11,FALSE)),0,VLOOKUP($G$1&"-"&$A14,BD!$C:$W,11,FALSE)) -> 0 | J14: =IF(ISERROR(VLOOKUP($G$1&"-"&$A14,BD!$C:$W,13,FALSE)),"",VLOOKUP($G$1&"-"&$A14,BD!$C:$W,13,FALSE)) ->  | K14: =IF(ISERROR(VLOOKUP($G$1&"-"&$A14,BD!$C:$W,17,FALSE)),"",VLOOKUP($G$1&"-"&$A14,BD!$C:$W,17,FALSE)) ->  | L14: =IF(ISERROR(VLOOKUP($G$1&"-"&$A14,BD!$C:$W,18,FALSE)),"",VLOOKUP($G$1&"-"&$A14,BD!$C:$W,18,FALSE)) ->  | M14: =IF(ISERROR(VLOOKUP($G$1&"-"&$A14,BD!$C:$W,19,FALSE)),"",VLOOKUP($G$1&"-"&$A14,BD!$C:$W,19,FALSE)) ->  | N14: =IF(ISERROR(VLOOKUP($G$1&"-"&$A14,BD!$C:$W,20,FALSE)),"",VLOOKUP($G$1&"-"&$A14,BD!$C:$W,20,FALSE)) ->  | O14: 0 | T14: =SUMIF(BD!H:H,D14,BD!AF:AF) -> 0
A15: 10 | B15: =IF(ISERROR(VLOOKUP($G$1&"-"&$A15,BD!$C:$W,4,FALSE)),"",VLOOKUP($G$1&"-"&$A15,BD!$C:$W,4,FALSE)) ->  | C15: =IF(ISERROR(VLOOKUP($G$1&"-"&$A15,BD!$C:$W,5,FALSE)),"",VLOOKUP($G$1&"-"&$A15,BD!$C:$W,5,FALSE)) ->  | D15: =IF(ISERROR(VLOOKUP($G$1&"-"&$A15,BD!$C:$W,6,FALSE)),"",VLOOKUP($G$1&"-"&$A15,BD!$C:$W,6,FALSE)) ->  | E15: =IF(ISERROR(VLOOKUP($G$1&"-"&$A15,BD!$C:$W,7,FALSE)),"",VLOOKUP($G$1&"-"&$A15,BD!$C:$W,7,FALSE)) ->  | F15: =IF(ISERROR(VLOOKUP($G$1&"-"&$A15,BD!$C:$W,8,FALSE)),"",VLOOKUP($G$1&"-"&$A15,BD!$C:$W,8,FALSE)) ->  | G15: =IF(ISERROR(VLOOKUP($G$1&"-"&$A15,BD!$C:$W,9,FALSE)),"",VLOOKUP($G$1&"-"&$A15,BD!$C:$W,9,FALSE)) ->  | H15: =IF(ISERROR(VLOOKUP($G$1&"-"&$A15,BD!$C:$W,10,FALSE)),"",VLOOKUP($G$1&"-"&$A15,BD!$C:$W,10,FALSE)) ->  | I15: =IF(ISERROR(VLOOKUP($G$1&"-"&$A15,BD!$C:$W,11,FALSE)),0,VLOOKUP($G$1&"-"&$A15,BD!$C:$W,11,FALSE)) -> 0 | J15: =IF(ISERROR(VLOOKUP($G$1&"-"&$A15,BD!$C:$W,13,FALSE)),"",VLOOKUP($G$1&"-"&$A15,BD!$C:$W,13,FALSE)) ->  | K15: =IF(ISERROR(VLOOKUP($G$1&"-"&$A15,BD!$C:$W,17,FALSE)),"",VLOOKUP($G$1&"-"&$A15,BD!$C:$W,17,FALSE)) ->  | L15: =IF(ISERROR(VLOOKUP($G$1&"-"&$A15,BD!$C:$W,18,FALSE)),"",VLOOKUP($G$1&"-"&$A15,BD!$C:$W,18,FALSE)) ->  | M15: =IF(ISERROR(VLOOKUP($G$1&"-"&$A15,BD!$C:$W,19,FALSE)),"",VLOOKUP($G$1&"-"&$A15,BD!$C:$W,19,FALSE)) ->  | N15: =IF(ISERROR(VLOOKUP($G$1&"-"&$A15,BD!$C:$W,20,FALSE)),"",VLOOKUP($G$1&"-"&$A15,BD!$C:$W,20,FALSE)) ->  | O15: =IF(T15>0,"Devolvido "&T15&" ch",0) -> 0 | T15: =SUMIF(BD!H:H,D15,BD!AF:AF) -> 0
C16: =SUBTOTAL(9,C6:C15) -> 0 | K16: =SUBTOTAL(9,K6:K15) -> 0 | L16: =SUBTOTAL(9,L6:L15) -> 0 | M16: =SUBTOTAL(9,M6:M15) -> 0
I17: =IF(SUM(I6:I15)=0,0,AVERAGEIF(I6:I15,">0")) -> 0 | L17: Borderô (ou TAC) => | M17: =IF(M16=0,0,(IF(T1="sim"," rateado",E2-(E2*2)))) -> 0
I18: Média | L18: Valor à receber => | M18: =IF(T1="Sim",M16,M16+M17) -> 0

Sheet AU (hidden)
AB1: 2100-01-01 | XFD1: =TODAY()+46 -> 2023-10-08
AB2: =IF(AB10=0,0,IF(AB1<TODAY(),0,1)) -> 1 | XFD2: =TODAY()+46 -> 2023-10-08
Z4: =Menu!D17 -> Versão Gratuita | AB4: Versão Gratuita
Z5: =Menu!D18 -> ** Com limite de 10 cheques em cada troca ** | AB5: ** Com limite de 10 cheques em cada troca **
AB6: © 2012 - Pedro Paulo Andriani. Todos os direitos reservados.
AB7: www.planilhasparaconfeccao.com.br
AB8: =CONCATENATE(AB4,AB5,AB6,AB7) -> Versão Gratuita** Com limite de 10 cheques em cada troca **© 2012 - Pedro Paulo Andriani. Todos os direitos reservados.www.planilhasparaconfeccao.com.br
AB9: =CONCATENATE(Menu!D17,Menu!D18,Menu!D22,Menu!F21) -> Versão Gratuita** Com limite de 10 cheques em cada troca **© 2012 - Pedro Paulo Andriani. Todos os direitos reservados.www.planilhasparaconfeccao.com.br
AB10: =IF(AB8<>AB9,0,1) -> 1

Sheet Passo a passo (hidden)
B2: Itens | C2: PASSO-A-PASSO | D2: Duração | E2: Links
B3: 1 | C3: Apresentação geral da Planilha ( não disponível para versão gratuita )
B4: 2 | C4: Como fazer uma Troca de Cheques, registrar e imprimir | D4: 18:45:00 | E4: http://youtu.be/yreKD_mSrRo
B5: 3 | C5: Como salvar em PDF uma Troca de Cheques e enviar por e-mail | D5: 05:42:00 | E5: http://youtu.be/IvPgAF-GQcE
B6: 4 | C6: Como consultar uma Troca de Cheques | D6: 04:53:00 | E6: http://youtu.be/zLYOIGdZUD4
B7: 5 | C7: Como analisar as informações de Todos os Cheques através do "Filtro" | D7: 09:26:00 | E7: http://youtu.be/xke4TobPXAs
B8: 6 | C8: Como excluir uma Troca de Cheques ou somente um cheque trocado | D8: 05:08:00 | E8: http://youtu.be/L-BDHT2KLAg
B9: 7 | C9: Como alterar uma Troca de Cheques ou somente um cheque trocado | D9: 06:49:00 | E9: http://youtu.be/rmTJpbTn8sI
B10: 8 | C10: Como cadastrar/alterar os Feriados | D10: 03:33:00 | E10: http://youtu.be/NIZHSMsJ98M
B11: 9 | C11: Como cadastrar/alterar um Fornecedor / Cliente ou Titular do Cheque | D11: 04:44:00 | E11: http://youtu.be/2uZZfxGZi6A
B12: 10 | C12: Como atualizar as Datas do Calendário | D12: 01:26:00 | E12: http://youtu.be/nJttnrMNjdA
B13: 11 | C13: Como personalizar o cabeçalho de Todos os Cheques | D13: 08:47:00 | E13: http://youtu.be/Qg7NhESylBA
